Cogmind - Beta 9.3 @@@ ROGUE MODE // 2019.12.30 @ 11:44:23 // Winter2019/RPGLIKE Player: badjay Result: Destroyed by Combat Programmer with EMDS Performance ------------- Evolutions (9) 4500 Regions Visited (35) 7000 Robots Destroyed (991) 4955 Value Destroyed (45868) 45868 Prototype IDs (144) 2880 Alien Tech Used (2) 400 Bonus (33107) 33107 TOTAL SCORE: 98710 Bonus ------- Triggered High Security 1500 High Alert Combat Kills 16281 Follower Combat Kills 1504 Network Hubs Disabled 600 Met Imprinter 300 Met Zhirov 300 Met Warlord at Base 500 MAIN.C Attacked Warlord 500 Warlord Defense Kill 280 A7 Reached Mainframe 300 Met R17 at Cetus 500 Used Core Reset Matrix 3000 Hacked Protovariant 500 Met R17 at Research 2000 Met Warlord at Research 2000 Acquired SGEMP 2000 Met Sigix 2000 Friendly Fire -958 Cogmind --------- Core Integrity 0/600 Matter 146/300 Energy 425/600 System Corruption 8% Temperature Cool (0) Movement Flying (24) Location -1/Command Parts ------- > --- POWER (2) -------- Cooled Fission Core Cooled Fission Core > --- PROPULSION (3) --- Cooled Q-thruster Cooled Q-thruster Cooled Q-thruster > --- UTILITY (13) ----- Long-range Sensor Array Experimental Signal Interpreter Advanced Salvage Targeting Computer Advanced Targeting Computer Experimental Target Analyzer Advanced Core Analyzer Advanced Armor Integrity Analyzer Experimental Weapon Cycler Advanced Reaction Control System Advanced Phase Shifter Advanced Shield Generator Quantum Router Improved System Backup Module > --- WEAPON (4) ------- High-powered Disruptor Cannon Hypervelocity Railgun Vibroblade > --- INVENTORY (4) ---- SGEMP Prototype Sigix Containment Pod Peak State ------------ > --- POWER ------------ Cooled Fission Core Cooled Fission Core > --- PROPULSION ------- Cooled Q-thruster Cooled Q-thruster Cooled Q-thruster > --- UTILITY ---------- Long-range Sensor Array Experimental Signal Interpreter Advanced Salvage Targeting Computer Advanced Targeting Computer Experimental Target Analyzer Advanced Core Analyzer Advanced Armor Integrity Analyzer Experimental Weapon Cycler Advanced Reaction Control System Advanced Phase Shifter Advanced Shield Generator Ghost Barrier Quantum Router > --- WEAPON ----------- High-powered Disruptor Cannon Hypervelocity Railgun Vibroblade > --- INVENTORY -------- SGEMP Prototype Sigix Containment Pod [Rating: 186] Favorites ----------- Power Cooled Ion Engine Engine Cooled Ion Engine Power Core Cooled Fission Core Reactor Vortex Chain Reactor Propulsion Cooled Cesium-ion Thruster Treads Centrium Heavy Treads Flight Unit Cooled Cesium-ion Thruster Utility Advanced Targeting Computer Device Advanced Terrain Scanner Processor Advanced Targeting Computer Hackware Ghost Barrier Protection Centrium Medium Armor Plating Weapon Precision Shock Rifle Energy Gun Precision Shock Rifle Energy Cannon Improved EM Pulse Cannon Ballistic Gun Hypervelocity Gauss Rifle Ballistic Cannon Compact Mass Driver Launcher Heavy Shock Bomb Launcher Slashing Weapon Vibroblade Piercing Weapon Vortex Lance Build | -11 -10 -10 -9 -9 -9 -8 -8 -7 -7 -7 -7 -6 -6 -6 -6 -6 -6 -5 -5 -5 -5 -4 -4 -4 -4 -4 -4 -4 -3 -3 -3 -2 -2 -1 -1 ------- Run | Scr Mat Min Mat Min Exi Min Mat Fac Low Low Zio Pro Fac Ext Cet Arc Hub Fac Upp Upp Zhi Pro Fac Was Fac Upp Upp War Pro Res Qua Res Tes Acc Com Slots Evolved 18 | . 1 . 3 . 1 . 1 4 . . . 1 2 . . . . 1 . 1 . . 1 . . . . . . 1 . . . 1 . Power 1 | . . . . . . . 1 . . . . . . . . . . . . . . . . . . . . . . . . . . . . Propulsion 2 | . . . 1 . . . . . . . . . 1 . . . . . . . . . . . . . . . . . . . . . . Utility 12 | . . . 1 . 1 . . 3 . . . 1 1 . . . . 1 . 1 . . 1 . . . . . . 1 . . . 1 . Weapon 3 | . 1 . 1 . . . . 1 . . . . . . . . . . . . . . . . . . . . . . . . . . . Parts Attached 508 | . 6 2 8 . . 1 10 32 . 1 . 8 39 4 8 2 8 25 8 10 6 10 28 . 31 . 10 11 7 36 17 10 66 99 5 Power 18 | . 1 1 . . . 1 4 4 . . . . . . . . . 1 . . 1 . . . 1 . . 3 . 1 . . . . . Engine 9 | . 1 . . . . . 2 3 . . . . . . . . . 1 . . 1 . . . . . . 1 . . . . . . . Core 8 | . . 1 . . . 1 2 1 . . . . . . . . . . . . . . . . 1 . . 1 . 1 . . . . . Reactor 1 | . . . . . . . . . . . . . . . . . . . . . . . . . . . . 1 . . . . . . . Propulsion 35 | . 1 1 2 . . . . 5 . . . . 3 . 3 . 1 1 . . . . . . 7 . . . 2 2 . 2 2 3 . Treads 2 | . . . . . . . . . . . . . . . 1 . . . . . . . . . . . . . 1 . . . . . . Leg . | . . . . . . . . . . . . . . . . . . . . . . . . . . . . . . . . . . . . Wheel . | . . . . . . . . . . . . . . . . . . . . . . . . . . . . . . . . . . . . Hover . | . . . . . . . . . . . . . . . . . . . . . . . . . . . . . . . . . . . . Flight 33 | . 1 1 2 . . . . 5 . . . . 3 . 2 . 1 1 . . . . . . 7 . . . 1 2 . 2 2 3 . Utility 221 | . 2 . 2 . . . 2 6 . 1 . 2 10 2 2 2 3 7 . 2 5 1 5 . 9 . 2 4 1 12 3 4 36 92 4 Device 183 | . 1 . . . . . . 2 . . . 2 9 2 1 1 3 7 . 1 5 1 4 . 7 . 2 3 1 9 3 2 29 84 4 Storage . | . . . . . . . . . . . . . . . . . . . . . . . . . . . . . . . . . . . . Processor 27 | . 1 . 2 . . . 2 3 . 1 . . 1 . . 1 . . . 1 . . 1 . 2 . . . . 1 . 1 4 6 . Hackware 10 | . . . . . . . . 1 . . . . . . . . . . . . . . . . . . . 1 . 2 . 1 3 2 . Protection 1 | . . . . . . . . . . . . . . . 1 . . . . . . . . . . . . . . . . . . . . Artifact . | . . . . . . . . . . . . . . . . . . . . . . . . . . . . . . . . . . . . Weapon 234 | . 2 . 4 . . . 4 17 . . . 6 26 2 3 . 4 16 8 8 . 9 23 . 14 . 8 4 4 21 14 4 28 4 1 Energy Gun 121 | . . . 3 . . . 1 9 . . . 3 24 2 2 . 2 9 4 4 . 5 12 . 10 . 4 2 1 13 7 1 3 . . Energy Cannon 21 | . . . . . . . 2 7 . . . . 1 . . . . 3 . . . . . . . . . . 1 1 . . 5 1 . Ballistic Gun 37 | . 2 . 1 . . . . 1 . . . 3 . . 1 . 2 2 . 2 . . 5 . 3 . 3 . 1 2 2 1 5 . 1 Ballistic Cannon 6 | . . . . . . . . . . . . . . . . . . 1 . . . . 1 . . . . . . 2 . . 2 . . Launcher 25 | . . . . . . . 1 . . . . . 1 . . . . 1 4 2 . 4 5 . 1 . 1 . 1 1 . . 3 . . Special Weapon . | . . . . . . . . . . . . . . . . . . . . . . . . . . . . . . . . . . . . Impact Weapon . | . . . . . . . . . . . . . . . . . . . . . . . . . . . . . . . . . . . . Slashing Weapon 17 | . . . . . . . . . . . . . . . . . . . . . . . . . . . . . . . 3 2 9 3 . Piercing Weapon 7 | . . . . . . . . . . . . . . . . . . . . . . . . . . . . 2 . 2 2 . 1 . . Special Melee Weapon . | . . . . . . . . . . . . . . . . . . . . . . . . . . . . . . . . . . . . Unidentified Prototypes 61 | . . . . . . . . 6 . . . . 4 . 4 . . 3 . . 3 . 5 . 3 . . 4 . 6 4 . 14 5 . Parts Lost 3 | . . . . . . . 2 . . . . . . . . . . 1 . . . . . . . . . . . . . . . . . Power . | . . . . . . . . . . . . . . . . . . . . . . . . . . . . . . . . . . . . Propulsion . | . . . . . . . . . . . . . . . . . . . . . . . . . . . . . . . . . . . . Utility . | . . . . . . . . . . . . . . . . . . . . . . . . . . . . . . . . . . . . Weapon 3 | . . . . . . . 2 . . . . . . . . . . 1 . . . . . . . . . . . . . . . . . Highest Loss Streak 1 | . . . . . . . 1 . . . . . . . . . . 1 . . . . . . . . . . . . . . . . . Average Slot Usage (%) 97 | . 75 94 99 100 100 88 97 98 100 100 100 97 99 100 99 100 99 99 100 100 99 100 98 95 97 100 99 99 100 99 100 99 98 93 92 Engine 6 | . . . . . . . 1 14 14 14 14 13 11 11 11 11 11 11 11 10 10 10 10 10 9 5 5 4 5 1 . . . . . Core 3 | . . 14 13 12 12 11 12 . . . . . . . . . . . . . . . . . . 5 5 4 5 7 9 9 9 9 9 Flight 15 | . 16 20 23 25 25 22 21 14 14 14 14 13 16 17 17 17 17 16 16 15 15 15 15 15 15 15 15 15 15 14 14 13 13 13 13 Device 19 | . 18 . . . . . . 6 7 7 7 9 19 23 23 22 22 27 27 26 25 26 25 25 27 30 29 28 25 24 28 28 24 21 25 Processor 25 | . . 20 27 25 25 22 31 30 35 35 35 32 24 23 23 23 23 22 22 26 26 26 25 25 25 25 25 25 25 23 23 23 26 27 27 Hackware 1 | . . . . . . . . . . . . . . . . . . . . . . . . . . . . 1 5 6 4 4 4 8 4 Energy Gun 14 | . . . 9 37 37 33 19 6 28 28 28 26 24 23 22 23 19 21 20 16 15 19 16 10 16 15 14 13 14 14 13 14 6 . . Energy Cannon 2 | . . . . . . . 9 22 . . . . . . . . . . . . . . . . . . . . . . . . 1 4 4 Ballistic Gun 3 | . 40 40 24 . . . . . . . . . . . . . 2 . . 3 5 . 3 5 3 5 5 5 5 4 3 . 3 4 3 Naked Turns 4 | . 4 . . . . . . . . . . . . . . . . . . . . . . . . . . . . . . . . . . Heaviest Build 76 | . 7 11 14 14 14 14 32 46 33 33 33 35 41 42 39 39 42 50 48 48 47 49 52 52 55 55 59 67 56 64 65 64 72 76 74 Greatest Support 108 | 3 9 14 22 22 22 22 32 48 45 45 45 49 71 71 59 59 59 72 72 60 60 72 72 60 77 77 69 77 65 77 77 65 91 108 108 Greatest Overweight (x) 1 | . 1 1 . . . . 1 . . . . . . 1 1 . . 1 . . . . . . . . . . 1 . . 1 1 . . Average Overweight (x) . | . . . . . . . . . . . . . . . . . . . . . . . . . . . . . . . . . . . . Largest Inventory Capacity 4 | . . . . . . . 1 2 2 3 3 3 4 4 4 4 4 4 4 4 4 4 4 4 4 4 4 4 4 4 4 4 4 4 4 Average Capacity 3 | . . . . . . . . 1 2 2 3 3 3 4 4 4 4 4 4 4 4 4 4 4 4 4 4 4 4 4 4 4 4 4 4 Most Carried 4 | . . . . . . . 1 2 2 3 3 3 4 4 4 4 4 4 4 4 4 4 4 4 4 4 4 4 4 4 4 4 4 4 4 Average Carried 3 | . . . . . . . . 1 2 2 3 3 3 4 3 3 3 3 4 3 3 4 4 4 3 4 4 3 4 3 3 4 3 4 4 Final Capacity 4 | . . . . . . . 1 2 2 3 3 3 4 4 4 4 4 4 4 4 4 4 4 4 4 4 4 4 4 4 4 4 4 4 4 Final Carried 4 | . . . . . . . 1 2 2 3 3 3 4 4 4 3 4 4 4 3 4 4 4 4 4 4 4 4 4 4 4 4 4 4 4 Class Distribution -------------------- 31% | Hacker-Scout 30% | Hacker-Sprinter 27% | Wizard-Scout 4% | Commander-Sprinter 4% | Hacker-Mutant Dominant Class ---------------- Hacker-Mutant | -10/Materials Hacker-Mutant | -10/Mines Hacker-Sprinter | -9/Materials Hacker-Sprinter | -9/Mines Hacker-Sprinter | -9/Exiles Hacker-Sprinter | -8/Mines Hacker-Sprinter | -8/Materials Hacker-Sprinter | -7/Factory Hacker-Sprinter | -7/Lower Caves Hacker-Sprinter | -7/Lower Caves Hacker-Sprinter | -7/Zion Hacker-Sprinter | -6/Proximity Caves Hacker-Sprinter | -6/Factory Commander-Sprinter | -6/Extension Commander-Sprinter | -6/Cetus Commander-Scout | -6/Archives Hacker-Scout | -6/Hub_04(d) Hacker-Scout | -5/Factory Hacker-Scout | -5/Upper Caves Hacker-Scout | -5/Upper Caves Hacker-Scout | -5/Zhirov Hacker-Scout | -4/Proximity Caves Hacker-Scout | -4/Factory Hacker-Scout | -4/Waste Hacker-Scout | -4/Factory Hacker-Scout | -4/Upper Caves Hacker-Scout | -4/Upper Caves Hacker-Scout | -4/Warlord Wizard-Scout | -3/Proximity Caves Wizard-Scout | -3/Research Wizard-Scout | -3/Quarantine Wizard-Scout | -2/Research Wizard-Scout | -2/Testing Wizard-Scout | -1/Access Wizard-Scout | -1/Command Resources | -11 -10 -10 -9 -9 -9 -8 -8 -7 -7 -7 -7 -6 -6 -6 -6 -6 -6 -5 -5 -5 -5 -4 -4 -4 -4 -4 -4 -4 -3 -3 -3 -2 -2 -1 -1 ----------- Run | Scr Mat Min Mat Min Exi Min Mat Fac Low Low Zio Pro Fac Ext Cet Arc Hub Fac Upp Upp Zhi Pro Fac Was Fac Upp Upp War Pro Res Qua Res Tes Acc Com Matter Collected 13630 | 196 384 244 672 . . 10 105 320 . 10 . 100 390 40 80 . 174 255 191 234 74 184 854 . 800 88 631 150 352 726 375 . 982 4269 740 Remotely 10 | . . . . . . . . . . . . . . . . . . . . . . . . . 10 . . . . . . . . . . Salvage Created 53983 | . 454 195 1835 56 . 875 1846 3279 499 1033 . 1785 4910 2191 382 252 1050 5109 1169 468 362 1844 2798 . 4349 595 1716 114 672 3335 676 253 1010 7456 1415 Parts 3099 | . 29 15 112 . . 26 103 152 26 45 . 86 295 138 16 11 77 284 59 31 12 84 199 . 223 45 102 7 62 180 33 3 77 480 87 Haulers Intercepted 66 | . 2 . 6 . . . 6 6 . . . . 6 5 . . . 8 . . . . 1 . 4 . 1 . . 7 2 2 2 8 . Recyclers Shooed 4 | . . . . . . . . . . . . . . . . . . . . . . . 2 . 1 . . . . 1 . . . . . Parts Field Recycled . | . . . . . . . . . . . . . . . . . . . . . . . . . . . . . . . . . . . . Retrieved Matter . | . . . . . . . . . . . . . . . . . . . . . . . . . . . . . . . . . . . . Parts Self-Destructed 302 | . . . . . . . . . 8 14 . 31 . . . . . . 23 26 11 21 . . . 45 75 18 30 . . . . . . Prevented 267 | . . . . . . . . . 18 27 . 53 . . . . . . 30 5 . 62 . . . . 33 8 31 . . . . . . Kills | -11 -10 -10 -9 -9 -9 -8 -8 -7 -7 -7 -7 -6 -6 -6 -6 -6 -6 -5 -5 -5 -5 -4 -4 -4 -4 -4 -4 -4 -3 -3 -3 -2 -2 -1 -1 ------- Run | Scr Mat Min Mat Min Exi Min Mat Fac Low Low Zio Pro Fac Ext Cet Arc Hub Fac Upp Upp Zhi Pro Fac Was Fac Upp Upp War Pro Res Qua Res Tes Acc Com Combat Hostiles Destroyed 772 | . 12 10 32 2 . 14 33 42 11 16 . 31 71 25 2 2 14 74 30 9 . 28 47 . 57 11 31 2 16 36 4 . 11 80 19 Melee 1 | . . . . . . . . . . . . . . . . . . . . . . . . . . . . . . . . . 1 . . Guns 602 | . 12 10 32 2 . 13 20 8 8 13 . 23 54 23 . 2 14 63 16 6 . 15 41 . 45 11 31 2 14 30 4 . 8 65 17 Cannons 37 | . . . . . . . 8 21 . . . . . . . . . . . . . . . . . . . . . . . . 1 5 2 AOE 64 | . . . . . . . 4 4 2 . . 2 8 2 . . . 6 13 3 . 6 6 . 2 . . . 1 5 . . . . . Classes Destroyed 22 | . 4 . 3 1 . 1 1 3 . 2 . 1 1 . . . 1 1 . . . . . . . . . . . 2 . . 1 . . Worker 27 | . . . . . . . 1 4 . . . . 8 . . . 1 4 . . . . 2 . 1 . . . . 2 . 1 . 3 . Builder 18 | . . . . . . . . 4 . . . . 2 2 . . . 2 . . . . 1 . 3 . . . . 2 . . . 2 . Tunneler 2 | . . . . . . . . . . . . . . . . . 1 . . . . . . . . . . . . . . . . 1 . Hauler 66 | . 2 . 6 . . . 6 6 . . . . 6 5 . . . 8 . . . . 1 . 4 . 1 . . 7 2 2 2 8 . Recycler 6 | . . . . . . . . 2 . . . . 1 1 . . . . . . . . 1 . . . . . . . . . . 1 . Operator 18 | . . . 1 . . . . 4 . . . . 3 2 . . 1 1 . . . . . . . . . . . 1 1 . 2 1 1 Drone 1 | . . . . . . . . . . . . . . . . . . . . . . . . . . . . . . 1 . . . . . Watcher 76 | . 3 . 5 . . . 4 6 . . . . 8 3 2 . 5 8 . . . . 4 . 5 . . . . 3 2 . 3 13 2 Swarmer 176 | . 6 2 4 . . 3 13 3 4 3 . 14 8 2 . . 2 22 16 5 . 6 8 . 13 2 14 . 2 7 . . . 11 6 Saboteur 3 | . . . . . . . . . . . . . . . . . . 1 . . . . . . 1 . . . . . . . . 1 . Grunt 298 | . 6 8 17 . . 10 8 19 6 7 . 9 32 12 . . 5 30 10 1 . 15 21 . 19 5 11 1 7 13 2 . . 17 7 Brawler 22 | . . . . . . . . 2 . . . 1 5 . . . . 3 1 . . 1 . . 5 . 1 . 1 . . . . 2 . Duelist 23 | . . . 2 . . . . 2 1 1 . . 2 1 . . . . . . . 2 1 . . . 1 1 2 . . . . 7 . Protector 5 | . . . . . . . . . . . . . 1 . . . . 2 . . . . 1 . . . 1 . . . . . . . . Sentry 109 | . . . 9 . . . 10 14 . 2 . 3 9 6 . 2 6 11 2 . . 2 7 . 5 2 2 . 2 3 . . . 10 2 Hunter 64 | . . . . . . 1 2 2 . 1 . 2 7 2 . . 1 3 1 . . 2 1 . 8 . . . 2 6 2 . 4 17 . Programmer 52 | . . . . . . . . . . . . 1 6 . . . . 2 . 2 . . 9 . 5 2 1 . . 2 . . 3 16 3 Behemoth 7 | . . . . . . . . . . 1 . 1 1 2 . . . . . 1 . . . . 1 . . . . . . . . . . Cetus Guard 2 | . . . . . . . . . . . . . . . 2 . . . . . . . . . . . . . . . . . . . . Combat Programmer 1 | . . . . . . . . . . . . . . . . . . . . . . . . . . . . . . . . . . . 1 Striker 7 | . . . . . . . . . . . . . . . . . . . . . . . . . . . . . . 5 . . 2 . . Alpha 7 1 | . . . . . . . . . . . . . . . . . . . . . . . . . . . . . . . . . 1 . . Protovariant P 1 | . . . . . . . . . . . . . . . . . . . . . . . . . . . . . . . . . 1 . . Packrat 1 | . . . . . . . . . . . . . . . . . . . . . . . . . . . 1 . . . . . . . . Assembled 2 | . . . . 2 . . . . . . . . . . . . . . . . . . . . . . . . . . . . . . . Savage 1 | . . . . . . . . . . . . . . . 1 . . . . . . . . . . . . . . . . . . . . Mutant 1 | . . . . . . . . . . 1 . . . . . . . . . . . . . . . . . . . . . . . . . Best Kill Streak 13 | . 5 2 12 2 . 3 12 11 4 6 . 8 13 10 3 2 8 10 9 4 . 6 9 . 6 5 5 2 5 8 4 2 3 10 6 Combat Bots Only 10 | . 3 2 6 2 . 3 5 5 4 6 . 8 7 7 2 2 4 10 9 4 . 6 6 . 5 5 5 2 5 7 2 . 3 10 5 Max Kills in Single Turn 6 | . 1 1 2 1 . 3 3 6 2 2 . 2 5 2 1 1 2 3 4 2 . 2 4 . 2 1 1 1 2 2 2 2 2 3 2 Gunslinging 1 | . . . 1 . . 1 1 . 1 1 . 1 1 1 . . 1 1 1 . . . . . . . . . 1 1 . . . . . Exploded 3 | . . . . . . . 3 1 1 . . 1 2 1 . . . 2 3 1 . 1 3 . 1 . . . 1 2 . . . . . Melee 1 | . . . . . . . . . . . . . . . . . . . . . . . . . . . . . . . . . 1 . . Uniques/NPCs Destroyed 2 | . . . . . . . . . . . . . . . . . . . . . . . . . . . . . . . . . . 2 . Svarog (-1/Access) Zhirov (-1/Access) Combat | -11 -10 -10 -9 -9 -9 -8 -8 -7 -7 -7 -7 -6 -6 -6 -6 -6 -6 -5 -5 -5 -5 -4 -4 -4 -4 -4 -4 -4 -3 -3 -3 -2 -2 -1 -1 -------- Run | Scr Mat Min Mat Min Exi Min Mat Fac Low Low Zio Pro Fac Ext Cet Arc Hub Fac Upp Upp Zhi Pro Fac Was Fac Upp Upp War Pro Res Qua Res Tes Acc Com Damage Taken 19475 | . 374 379 885 62 . 391 766 911 94 252 . 1062 1940 876 127 28 906 1426 493 246 . 477 911 . 2021 134 538 . 151 834 205 112 356 1437 1081 Core 15699 | . 330 316 735 49 . 311 624 744 76 201 . 866 1573 705 98 28 747 1126 394 204 . 373 730 . 1606 109 421 . 120 666 158 87 284 1146 872 Absorbed by Shields 4064 | . . . . . . . . 76 . . . . 33 65 102 . . 521 171 91 . 177 327 . 746 51 204 . 56 303 78 40 132 514 377 Redirected to Core 13063 | . 148 186 498 49 . 281 505 578 59 177 . 699 1303 578 98 . 555 1042 324 154 . 344 644 . 1398 86 392 . 103 581 158 87 245 1015 776 Core Remaining (%) 83 | 100 . 83 . . . 54 100 . . . . 81 . . . . 42 . . . . 100 . . . . . . 100 . 79 . 91 . . Volleys Fired 2277 | . 41 27 77 3 . 21 56 71 16 28 . 54 150 73 14 6 33 153 26 36 9 41 145 . 172 41 79 4 57 97 14 5 43 562 123 Largest 4 | . 2 2 3 3 . 3 3 4 4 4 . 4 4 4 4 4 4 4 4 4 4 4 4 . 4 2 4 4 4 4 4 3 4 2 2 Hottest 276 | . 46 46 135 135 . 135 176 276 220 220 . 220 270 270 270 270 270 270 270 250 250 270 270 . 270 113 223 223 223 258 258 225 258 150 150 Shots Fired 5342 | . 82 54 205 9 . 63 149 262 64 112 . 210 524 278 56 24 112 590 89 71 20 142 271 . 369 43 160 15 116 318 47 15 94 645 133 Gun 4902 | . 82 54 205 9 . 63 102 59 64 112 . 210 524 278 56 24 112 574 76 69 20 130 266 . 364 43 157 15 115 315 47 15 84 536 122 Cannon 390 | . . . . . . . 46 203 . . . . . . . . . 14 . . . . . . . . . . . . . . 7 109 11 Launcher 50 | . . . . . . . 1 . . . . . . . . . . 2 13 2 . 12 5 . 5 . 3 . 1 3 . . 3 . . Special . | . . . . . . . . . . . . . . . . . . . . . . . . . . . . . . . . . . . . Kinetic 1511 | . 82 54 148 . . . . . . . . 5 . . . . 16 4 . 30 1 . 114 . 89 40 65 4 55 94 14 . 38 536 122 Thermal 1113 | . . . . . . . . . . . . . 128 132 28 12 54 293 24 26 18 50 92 . 111 3 24 3 20 77 11 5 2 . . Explosive . | . . . . . . . . . . . . . . . . . . . . . . . . . . . . . . . . . . . . Electromagnetic 2718 | . . . 57 9 . 63 149 262 64 112 . 205 396 146 28 12 42 293 65 15 1 92 65 . 169 . 71 8 41 147 22 10 54 109 11 Robot Hit Streak 108 | . 12 17 57 16 . 43 59 72 88 49 . 78 94 68 31 27 45 108 75 98 35 79 31 . 64 47 59 38 29 48 16 29 75 34 24 Robot Miss Streak 7 | . 7 3 6 1 . 2 1 3 1 1 . 1 1 2 1 . 1 2 . 2 . 1 2 . 2 . 1 1 1 2 2 . 2 3 1 Penetration Max 3 | . . . . . . . . . . . . . . . . . 1 . . 1 . . 1 . 1 2 1 2 1 2 1 . 2 3 3 Secondary Targets 69 | . 1 . 3 1 . 1 1 2 2 3 . 9 9 5 . . 4 11 1 1 . 2 1 . 2 . 2 . 1 6 1 . . . . Max Gunslinging Chain 2 | . 1 . 1 1 . 1 1 1 1 1 . 2 1 1 . . 2 2 1 1 . 1 1 . 1 . 1 . 1 1 1 . . . . Shots Hit Robots 4277 | . 64 44 159 8 . 58 115 167 49 83 . 163 431 217 52 23 82 485 69 53 16 119 224 . 329 42 120 11 92 255 31 13 81 501 121 Core Hits 2218 | . 30 21 95 6 . 42 72 96 22 37 . 61 213 96 22 10 38 232 58 20 8 61 124 . 153 25 88 3 61 127 16 5 42 262 72 Critical Hits 764 | . . . 2 . . 1 2 8 4 6 . 8 10 14 3 2 9 20 4 18 4 11 62 . 58 28 39 3 25 52 12 2 35 250 72 Critical Kills 252 | . . . 1 . . . 1 2 2 3 . 5 4 3 1 . 3 6 3 1 . 3 21 . 21 10 15 1 8 19 7 . 7 85 20 Critical Parts Destroyed 414 | . . . 1 . . 1 1 2 2 3 . 3 6 9 2 . 4 14 . 13 2 7 34 . 32 17 19 2 12 26 4 1 22 140 35 Melee Attacks 48 | . . . . . . . . . . . . . . . . . . . . . . . . . . . . 1 . . 19 1 18 7 2 Impact . | . . . . . . . . . . . . . . . . . . . . . . . . . . . . . . . . . . . . Slashing 45 | . . . . . . . . . . . . . . . . . . . . . . . . . . . . . . . 17 1 18 7 2 Piercing 2 | . . . . . . . . . . . . . . . . . . . . . . . . . . . . . . . 2 . . . . Entropic 1 | . . . . . . . . . . . . . . . . . . . . . . . . . . . . 1 . . . . . . . Sneak Attacks 3 | . . . . . . . . . . . . . . . . . . . . . . . . . . . . . . . . . 3 . . Combat Hostiles 3 | . . . . . . . . . . . . . . . . . . . . . . . . . . . . . . . . . 3 . . Follow-up Attacks . | . . . . . . . . . . . . . . . . . . . . . . . . . . . . . . . . . . . . Damage Inflicted 96532 | . 842 630 2694 134 . 1411 2860 5626 1024 1712 . 2924 10907 5327 1360 462 2031 11671 2903 1667 425 3195 7046 . 8672 377 2127 153 1394 5733 719 403 2051 6706 1346 Guns 74670 | . 842 630 2594 134 . 1141 1359 903 942 1491 . 2615 9251 4746 1107 462 1903 9823 1285 1460 425 2170 5960 . 7954 377 1734 153 1297 4979 719 331 1233 3604 1046 Cannons 8488 | . . . . . . . 1015 3473 . . . . . . . . . 331 . . . . . . . . . . . . . . 297 3072 300 Explosions 12913 | . . . 100 . . 270 486 1250 82 221 . 309 1656 581 253 . 128 1517 1618 207 . 1025 1086 . 718 . 393 . 97 754 . 72 60 30 . Melee 461 | . . . . . . . . . . . . . . . . . . . . . . . . . . . . . . . . . 461 . . Ramming . | . . . . . . . . . . . . . . . . . . . . . . . . . . . . . . . . . . . . Kinetic 16862 | . 842 630 1715 . . . . . . . . 76 . . . . 366 64 . 804 23 . 3252 . 2517 321 420 32 331 487 49 . 283 3604 1046 Thermal 28162 | . . . 100 . . 270 461 1250 82 221 . 309 4118 2788 853 263 735 6112 1019 569 390 819 2287 . 2441 56 307 47 332 1862 237 194 25 15 . Explosive . | . . . . . . . . . . . . . . . . . . . . . . . . . . . . . . . . . . . . Electromagnetic 51047 | . . . 879 134 . 1141 2399 4376 942 1491 . 2539 6789 2539 507 199 930 5495 1884 294 12 2376 1507 . 3714 . 1400 74 731 3384 433 209 1282 3087 300 Impact . | . . . . . . . . . . . . . . . . . . . . . . . . . . . . . . . . . . . . Slashing 461 | . . . . . . . . . . . . . . . . . . . . . . . . . . . . . . . . . 461 . . Piercing . | . . . . . . . . . . . . . . . . . . . . . . . . . . . . . . . . . . . . Highest Corruption 15 | . . . . . . . . . . . . 1 2 . . . 11 2 . 3 2 . 10 14 15 8 9 3 . 1 1 . 1 6 7 Average Corruption 5 | . . . . . . . . . . . . 1 1 . . . 6 1 . 2 1 . 7 10 12 7 5 3 . 1 1 . 1 4 6 Corruption Purged 36 | . . . . . . . . . . . . . 4 . . . 1 2 . 1 2 . 3 . 11 1 7 . . . 1 . . . 3 Effects 392 | . . . . . . . . . . . . 4 10 . . . 12 9 . 2 . . 61 1 127 13 35 . . 1 1 . 9 90 17 Message Errors 55 | . . . . . . . . . . . . 1 2 . . . 3 2 . . . . 3 1 19 2 7 . . . . . 2 12 1 Matter Fused 56 | . . . . . . . . . . . . . . . . . 1 . . . . . 10 . 15 4 3 . . . . . . 20 3 Heat Flow Errors 23 | . . . . . . . . . . . . . 1 . . . 1 2 . . . . 3 . 5 1 3 . . . . . . 6 1 Energy Discharges 32 | . . . . . . . . . . . . 1 2 . . . 1 1 . 1 . . 3 . 5 2 2 . . . 1 . 1 10 2 Parts Rejected 3 | . . . . . . . . . . . . . . . . . . . . . . . . . 2 . 1 . . . . . . . . Data Loss (minor) 27 | . . . . . . . . . . . . . . . . . . . . . . . 7 . 7 . 3 . . 1 . . 2 5 2 Data Loss (major) 7 | . . . . . . . . . . . . . . . . . . . . . . . 1 . 1 1 . . . . . . . 4 . Misfires 6 | . . . . . . . . . . . . . . . . . . . . . . . 1 . 3 . 1 . . . . . . 1 . Misdirections 21 | . . . . . . . . . . . . . . . . . . . . . . . . . 21 . . . . . . . . . . Targeting Errors 139 | . . . . . . . . . . . . . 3 . . . 6 3 . 1 . . 29 . 42 3 12 . . . . . 4 28 8 Weapon Failures 23 | . . . . . . . . . . . . 2 2 . . . . 1 . . . . 4 . 7 . 3 . . . . . . 4 . Overload Shots . | . . . . . . . . . . . . . . . . . . . . . . . . . . . . . . . . . . . . Overflow Damage 806 | . . . . . . . 55 107 . . . 13 187 5 . . . 50 63 . . 29 91 . 63 . 15 . . 47 . . 51 30 . Projectiles 165 | . . . . . . . 36 78 . . . . . . . . . 21 . . . . . . . . . . . . . . . 30 . Explosions 590 | . . . . . . . 19 29 . . . 13 187 5 . . . 29 63 . . 29 91 . 63 . 15 . . 47 . . . . . Melee 51 | . . . . . . . . . . . . . . . . . . . . . . . . . . . . . . . . . 51 . . Knockbacks . | . . . . . . . . . . . . . . . . . . . . . . . . . . . . . . . . . . . . Impact . | . . . . . . . . . . . . . . . . . . . . . . . . . . . . . . . . . . . . Kinetic . | . . . . . . . . . . . . . . . . . . . . . . . . . . . . . . . . . . . . Secondary . | . . . . . . . . . . . . . . . . . . . . . . . . . . . . . . . . . . . . Self-Inflicted Damage 1287 | . . . 48 . . 95 100 231 . . . . 306 63 . . 106 82 57 . . . . . . . 30 . . 42 . . 20 107 . Shots 29 | . . . 2 . . 3 2 4 . . . . 4 1 . . 2 1 2 . . . . . . . 1 . . 3 . . 2 2 . Rammed . | . . . . . . . . . . . . . . . . . . . . . . . . . . . . . . . . . . . . Targets Rammed . | . . . . . . . . . . . . . . . . . . . . . . . . . . . . . . . . . . . . Kicked . | . . . . . . . . . . . . . . . . . . . . . . . . . . . . . . . . . . . . Crushed . | . . . . . . . . . . . . . . . . . . . . . . . . . . . . . . . . . . . . Highest Temperature 397 | . 6 34 369 . . 35 123 291 84 99 . 142 397 352 343 273 202 385 155 110 . 87 227 . 177 114 193 47 47 155 13 87 152 183 121 Average Temperature 75 | . 5 16 83 . . 13 32 85 40 43 . 43 75 114 159 128 66 103 68 46 . 22 43 . 57 72 94 31 27 47 4 43 39 49 56 Received Heat Transfer 2784 | . 141 123 303 . . 162 180 151 9 75 . 264 291 168 . . 78 217 30 . . 114 84 . 177 6 29 . 15 62 15 18 . 54 18 Effects 8 | . . . 4 . . . . . . . . . . 1 1 . . 2 . . . . . . . . . . . . . . . . . Shutdowns 1 | . . . 1 . . . . . . . . . . . . . . . . . . . . . . . . . . . . . . . . Energy Bleed 1 | . . . . . . . . . . . . . . . 1 . . . . . . . . . . . . . . . . . . . . Interference 5 | . . . 3 . . . . . . . . . . 1 . . . 1 . . . . . . . . . . . . . . . . . Damage (minor) 1 | . . . . . . . . . . . . . . . . . . 1 . . . . . . . . . . . . . . . . . Siege Activations . | . . . . . . . . . . . . . . . . . . . . . . . . . . . . . . . . . . . . Robots Corrupted 78 | . . . . . . 1 2 10 1 3 . 6 10 . 2 . . 6 1 . . 7 . . 11 . . . 1 2 . . 3 12 . Combat Hostiles 68 | . . . . . . 1 1 9 1 3 . 6 9 . 2 . . 5 1 . . 7 . . 10 . . . 1 1 . . 1 10 . Parts Fried 492 | . . . 8 . . 4 23 39 10 18 . 21 79 22 4 3 7 44 8 1 . 37 17 . 43 . 14 . 7 38 2 1 14 27 1 Impact Corruptions . | . . . . . . . . . . . . . . . . . . . . . . . . . . . . . . . . . . . . Robots Melted . | . . . . . . . . . . . . . . . . . . . . . . . . . . . . . . . . . . . . Combat Hostiles . | . . . . . . . . . . . . . . . . . . . . . . . . . . . . . . . . . . . . Parts Melted 58 | . . . . . . . . . . . . . 12 9 . 2 . 18 . 1 1 1 3 . 5 . . . . 3 . . 1 2 . Heat Transferred 36414 | . . . 200 . . 300 550 1050 . 250 . 300 4989 3830 1038 407 1036 8332 1429 692 471 1258 2768 . 3480 74 315 74 518 2398 333 235 37 50 . Parts Sabotaged 2 | . . . . . . . . . . . . . . . . . . . . . . . . . . . . . . . . . . . 2 Parts Stolen . | . . . . . . . . . . . . . . . . . . . . . . . . . . . . . . . . . . . . Parts Stripped . | . . . . . . . . . . . . . . . . . . . . . . . . . . . . . . . . . . . . Power Chain Reactions 90 | . . . 2 . . 4 10 10 2 3 . 4 9 5 1 . 1 14 5 2 . . 6 . 3 . 1 . . 6 . 1 . 1 . Missiles Intercepted . | . . . . . . . . . . . . . . . . . . . . . . . . . . . . . . . . . . . . Alert | -11 -10 -10 -9 -9 -9 -8 -8 -7 -7 -7 -7 -6 -6 -6 -6 -6 -6 -5 -5 -5 -5 -4 -4 -4 -4 -4 -4 -4 -3 -3 -3 -2 -2 -1 -1 ------- Run | Scr Mat Min Mat Min Exi Min Mat Fac Low Low Zio Pro Fac Ext Cet Arc Hub Fac Upp Upp Zhi Pro Fac Was Fac Upp Upp War Pro Res Qua Res Tes Acc Com Peak Influence 1920 | . 317 265 699 231 . 372 973 956 . . . . 1920 1503 1067 579 721 1805 . . . . 1265 457 1334 . . . . 891 511 352 359 1637 1708 Average Influence 730 | . 140 169 277 231 . 213 508 560 . . . . 1044 1105 944 543 494 1028 . . . . 826 448 869 . . . . 452 361 287 226 867 1479 Maximum Alert Level 5 | . 1 1 2 1 . 1 3 3 . . . . 5 4 3 2 3 5 . . . . 4 2 4 . . . . 3 2 1 1 5 5 Low Security (%) 9 | 100 77 53 44 . . 44 2 . . . . . . . . . . 1 . . . . . . . . . . . 7 3 13 39 5 . Level 1 21 | . 22 46 33 100 . 55 26 23 . . . . 11 . . . 24 11 . . . . 13 . 3 . . . . 41 57 86 60 12 . Level 2 22 | . . . 21 . . . 52 44 . . . . 19 10 . 100 72 14 . . . . 18 100 28 . . . . 29 38 . . 20 . Level 3 23 | . . . . . . . 17 31 . . . . 20 32 100 . 2 25 . . . . 51 . 50 . . . . 22 . . . 23 . Level 4 18 | . . . . . . . . . . . . . 36 57 . . . 28 . . . . 16 . 18 . . . . . . . . 33 56 Level 5 3 | . . . . . . . . . . . . . 10 . . . . 11 . . . . . . . . . . . . . . . 3 43 High Security 1 | . . . . . . . . . . . . . 1 . . . . 7 . . . . . . . . . . . . . . . 1 . Max Security . | . . . . . . . . . . . . . . . . . . . . . . . . . . . . . . . . . . . . Squads Dispatched 128 | . 2 1 6 . . . 4 17 . . . 1 14 1 . . 2 14 . . . 1 8 . 12 . 1 . . 11 6 4 7 13 3 Investigation 30 | . 1 1 4 . . . 4 4 . . . 1 4 1 . . . 1 . . . . . . 3 . . . . 2 1 . 2 . 1 Extermination 17 | . . . . . . . . 1 . . . . 4 . . . . 1 . . . . 3 . 1 . . . . . 1 . 1 4 1 Reinforcement 41 | . 1 . 2 . . . . 1 . . . . 3 . . . 2 2 . . . . 4 . 5 . . . . 8 3 4 3 3 . Assault 27 | . . . . . . . . 1 . . . . 3 . . . . 9 . . . 1 1 . 3 . 1 . . . 1 . 1 5 1 Garrison 13 | . . . . . . . . 10 . . . . . . . . . 1 . . . . . . . . . . . 1 . . . 1 . Intercept . | . . . . . . . . . . . . . . . . . . . . . . . . . . . . . . . . . . . . Construction Impeded 10 | . . . . . . . . 1 . . . . 2 . . . . 1 . . . . 1 . 2 . . . . 1 . . 1 1 . Haulers Reinforced 11 | . . . . . . . . . . . . . 1 . . . . 1 . . . . . . 2 . . . . 3 1 1 . 2 . Stealth | -11 -10 -10 -9 -9 -9 -8 -8 -7 -7 -7 -7 -6 -6 -6 -6 -6 -6 -5 -5 -5 -5 -4 -4 -4 -4 -4 -4 -4 -3 -3 -3 -2 -2 -1 -1 --------- Run | Scr Mat Min Mat Min Exi Min Mat Fac Low Low Zio Pro Fac Ext Cet Arc Hub Fac Upp Upp Zhi Pro Fac Was Fac Upp Upp War Pro Res Qua Res Tes Acc Com Distress Signals 36 | . 2 . 2 . . . 1 1 . . . . 2 . 2 . 3 1 . . . . . . 6 . . . . 8 1 1 . 4 2 Communications Jammed . | . . . . . . . . . . . . . . . . . . . . . . . . . . . . . . . . . . . . Distress Signals . | . . . . . . . . . . . . . . . . . . . . . . . . . . . . . . . . . . . . Times Spotted 1199 | . 20 11 49 10 . 16 39 48 12 17 . 32 90 44 10 4 28 113 34 11 . 36 58 5 118 11 44 5 20 65 30 17 17 141 44 Peak Tracking Total 22 | . 4 3 5 8 . 3 9 5 4 4 . 11 6 7 4 2 5 11 9 4 . 6 7 5 10 5 9 5 7 6 22 10 3 13 12 Tactical Retreats 125 | . 3 . 3 1 . 1 3 2 1 1 . 2 11 1 . . 2 13 4 . . 4 3 . 16 1 9 . 3 5 1 3 . 25 7 Traps | -11 -10 -10 -9 -9 -9 -8 -8 -7 -7 -7 -7 -6 -6 -6 -6 -6 -6 -5 -5 -5 -5 -4 -4 -4 -4 -4 -4 -4 -3 -3 -3 -2 -2 -1 -1 ------- Run | Scr Mat Min Mat Min Exi Min Mat Fac Low Low Zio Pro Fac Ext Cet Arc Hub Fac Upp Upp Zhi Pro Fac Was Fac Upp Upp War Pro Res Qua Res Tes Acc Com Traps Triggered 39 | . 1 . 1 . . . 2 3 . . . . 5 4 . . 3 1 . . . . 5 . 10 . . . . . . . . 1 3 Indirectly . | . . . . . . . . . . . . . . . . . . . . . . . . . . . . . . . . . . . . Trap Hack Attempts . | . . . . . . . . . . . . . . . . . . . . . . . . . . . . . . . . . . . . Triggered . | . . . . . . . . . . . . . . . . . . . . . . . . . . . . . . . . . . . . Disarmed . | . . . . . . . . . . . . . . . . . . . . . . . . . . . . . . . . . . . . Reprogrammed 17 | . 4 . . . . . . . . . . . 12 . . . . . . . . . . . . . . . . . . . . . 1 Reused 1 | . . . . . . . . . . . . . . . . . . . . . . . . . . . . . . . . . . . 1 Traps Extracted . | . . . . . . . . . . . . . . . . . . . . . . . . . . . . . . . . . . . . Installed . | . . . . . . . . . . . . . . . . . . . . . . . . . . . . . . . . . . . . Triggered 15 | . . . . . . . . . . . . . 3 . . . . 2 . . . . . . . . . 9 . . . . . . 1 Machines | -11 -10 -10 -9 -9 -9 -8 -8 -7 -7 -7 -7 -6 -6 -6 -6 -6 -6 -5 -5 -5 -5 -4 -4 -4 -4 -4 -4 -4 -3 -3 -3 -2 -2 -1 -1 ---------- Run | Scr Mat Min Mat Min Exi Min Mat Fac Low Low Zio Pro Fac Ext Cet Arc Hub Fac Upp Upp Zhi Pro Fac Was Fac Upp Upp War Pro Res Qua Res Tes Acc Com Machines Disabled 66 | . . . 1 . . . 3 2 . 1 . 2 13 3 . . 15 2 2 . . 1 3 . 3 1 . 1 1 1 5 . 2 4 . Max in Single Turn 9 | . . . 1 . . . 1 1 . 1 . 1 5 2 . . 9 1 1 . . 1 1 . 2 1 . 1 1 1 1 . 1 1 . Garrison Access 15 | . . . . . . . . . . . . . 1 . . . . 4 . . . . . . 2 . . . . 3 . . 1 4 . Network Hub 3 | . . . . . . . . . . . . . . . . . 3 . . . . . . . . . . . . . . . . . . Energy Cycler 2 | . . . . . . . . . . . . . . . . . . . . . . . . . . . . . . . . . . 2 . Machines Sabotaged . | . . . . . . . . . . . . . . . . . . . . . . . . . . . . . . . . . . . . Garrisons Compromised . | . . . . . . . . . . . . . . . . . . . . . . . . . . . . . . . . . . . . Overloaded Fab Kills . | . . . . . . . . . . . . . . . . . . . . . . . . . . . . . . . . . . . . Fab Network Shutdowns 1 | . . . . . . . . . . . . . 1 . . . . . . . . . . . . . . . . . . . . . . Hacking | -11 -10 -10 -9 -9 -9 -8 -8 -7 -7 -7 -7 -6 -6 -6 -6 -6 -6 -5 -5 -5 -5 -4 -4 -4 -4 -4 -4 -4 -3 -3 -3 -2 -2 -1 -1 --------- Run | Scr Mat Min Mat Min Exi Min Mat Fac Low Low Zio Pro Fac Ext Cet Arc Hub Fac Upp Upp Zhi Pro Fac Was Fac Upp Upp War Pro Res Qua Res Tes Acc Com Machines Accessed 231 | . 7 1 12 . . . 13 24 1 . . 1 22 14 4 1 8 21 1 1 4 . 4 . 13 1 . 11 1 14 15 4 10 18 5 Terminals 164 | . 7 1 10 . . . 10 15 1 . . 1 18 14 4 . 8 12 . . . . 3 . 10 1 . . 1 6 14 3 7 13 5 Fabricators 14 | . . . . . . . . 3 . . . . 2 . . . . 2 . . . . . . 1 . . . . 3 . 1 1 1 . Repair Stations 1 | . . . . . . . . . . . . . . . . . . 1 . . . . . . . . . . . . . . . . . Recycling Units 4 | . . . . . . . 1 . . . . . . . . . . 1 . . . . . . . . . . . 2 . . . . . Scanalyzers 10 | . . . 2 . . . 2 2 . . . . . . . . . 1 . . . . 1 . . . . . . . 1 . 1 . . Garrison Access 20 | . . . . . . . . 4 . . . . 2 . . . . 4 . . . . . . 2 . . . . 3 . . 1 4 . Total Hacks 1507 | . 45 5 62 . . . 67 109 5 . . 4 83 66 12 25 58 135 1 1 17 . 34 . 106 18 . 22 17 185 98 36 90 145 61 Successful 812 | . 28 4 36 . . . 31 60 1 . . 1 44 36 9 25 37 85 1 1 17 . 13 . 51 8 . 22 5 90 66 17 43 60 21 Failed 688 | . 16 . 25 . . . 36 48 4 . . 3 38 29 3 . 21 49 . . . . 21 . 55 10 . . 12 95 32 19 47 85 40 Catastrophic 146 | . . . 4 . . . 3 7 . . . . 12 10 1 . 6 8 . . . . 2 . 13 4 . . 6 21 5 7 7 20 10 Database Lockouts 7 | . 1 1 1 . . . . 1 . . . . 1 1 . . . 1 . . . . . . . . . . . . . . . . . Manual 740 | . 26 4 38 . . . 45 63 5 . 1 4 47 42 5 1 31 69 . . . . 15 . 56 18 . 1 17 75 63 14 34 37 29 Terminals 1240 | . 45 5 59 . . . 62 75 5 . . 4 76 66 12 . 58 102 . . . . 33 . 91 18 . . 17 123 97 31 76 124 61 Fabricators 88 | . . . . . . . . 11 . . . . 4 . . . . 12 . . . . . . 12 . . . . 33 . 5 5 6 . Repair Stations 3 | . . . . . . . . . . . . . . . . . . 3 . . . . . . . . . . . . . . . . . Recycling Units 28 | . . . . . . . 3 . . . . . . . . . . 1 . . . . . . . . . . . 24 . . . . . Scanalyzers 32 | . . . 3 . . . 2 6 . . . . . . . . . 11 . . . . 1 . . . . . . . 1 . 8 . . Garrison Access 50 | . . . . . . . . 17 . . . . 3 . . . . 6 . . . . . . 3 . . . . 5 . . 1 15 . Terminal Hacks 545 | . 25 4 31 . . . 21 36 1 . . 1 29 33 6 25 27 41 1 1 17 . 8 . 29 6 . 22 3 40 47 12 24 45 10 Record 65 | . . . . . . . . . . . . . 1 . 4 25 3 . . . 5 . . . . . . 10 . 4 5 1 1 5 1 Part Schematic 30 | . . . . . . . . 2 . . . . 3 5 . . . 4 . . 4 . . . 3 . . . . 5 1 . 1 2 . Robot Schematic 7 | . . . . . . . . 1 . . . . . . . . . 2 . . . . . . . . . . . 1 . 1 1 1 . Robot Analysis 22 | . . . . . . . 1 1 . . . . . 1 . . 2 3 . . 4 . . . 1 . . . . . 2 . 3 4 . Prototype ID Bank 65 | . 10 2 7 . . . 2 13 . . . . 2 2 . . 3 3 . . 4 . . . . . . 10 . 2 . 1 . 4 . Open Door 18 | . . . . . . . . . . . . . 1 9 1 . . . 1 1 . . . . . . . 2 . . 2 . . 1 . Level Access Points 17 | . 1 . . . . . . 1 . . . . 2 1 . . . 1 . . . . 1 . 1 1 . . 1 1 2 1 1 1 1 Branch Access Points 19 | . 1 1 1 . . . 1 1 1 . . 1 1 1 . . 1 1 . . . . . . 1 1 . . 1 1 2 . 1 1 . Emergency Access Points 9 | . . . . . . . . . . . . . . . . . 1 2 . . . . . . . . . . . 2 . 1 1 1 1 Machine Index 4 | . . . . . . . . . . . . . . . . . . . . . . . . . . . . . . 1 . 1 . 1 1 Terminal Index 11 | . 1 . 1 . . . 1 1 . . . . . . . . 1 1 . . . . 1 . 1 1 . . . . 1 . . 1 . Fabricator Index 3 | . . . . . . . . . . . . . . . . . . . . . . . . . . . . . . . 1 . . 1 1 Scanalyzer Index 2 | . . . . . . . . 1 . . . . . . . . . . . . . . . . . . . . . . 1 . . . . Garrison Index 4 | . . . . . . . . . . . . . . . . . . 1 . . . . . . 1 . . . . 1 1 . . . . Alert Level 79 | . 3 1 8 . . . 5 5 . . . . 7 7 . . 7 6 . . . . 2 . 5 . . . 1 6 7 1 3 4 1 Unreport Threat 52 | . 1 . 4 . . . 5 5 . . . . 5 6 . . 3 4 . . . . 1 . 3 3 . . . 5 2 . 1 4 . Locate Traps 7 | . 2 . 1 . . . . . . . . . . . . . 2 . . . . . . . 1 . . . . . . . . . 1 Reprogram Traps 4 | . 1 . . . . . . . . . . . 2 . . . . . . . . . . . . . . . . . . . . . 1 Dispatch Records 1 | . . . 1 . . . . . . . . . . . . . . . . . . . . . . . . . . . . . . . . Security Status 3 | . . . 1 . . . . . . . . . . . . . . . . . . . . . . . . . . 1 . . . 1 . Patrol Status 2 | . . . 1 . . . . . . . . . . . . . . . . . . . . . . . . . . . . . . 1 . Transport Status 2 | . 1 . . . . . 1 . . . . . . . . . . . . . . . . . . . . . . . . . . . . Investigation Status 5 | . . . . . . . . . . . . . . . . . . . . . . . . . 1 . . . . . 2 . 1 1 . Extermination Status 3 | . . . . . . . . . . . . . . . . . . . . . . . . . . . . . . . 2 . 1 . . Reinforcement Status 3 | . . . . . . . . . . . . . . . . . . . . . . . . . . . . . . 1 2 . . . . Assault Status 4 | . . . . . . . . . . . . . . . . . . . . . . . . . 1 . . . . 1 2 . . . . Recall Investigation 12 | . 1 . 1 . . . . . . . . . . . . . . 2 . . . . . . 3 . . . . 1 1 1 2 . . Recall Extermination 3 | . . . . . . . . 1 . . . . . . . . . . . . . . . . . . . . . . 1 . 1 . . Recall Reinforcements 9 | . 1 . 1 . . . . . . . . . . . . . . 1 . . . . . . 1 . . . . 2 1 . . 2 . Recall Assault 8 | . . . . . . . . . . . . . . . . . . 3 . . . . . . 2 . . . . . 1 1 1 . . Hauler Manifests 11 | . . . . . . . 1 1 . . . . . 1 . . 1 1 . . . . 1 . . . . . . 2 1 . 1 1 . Registered Components 11 | . . . 1 . . . . 1 . . . . 1 . . . . 1 . . . . . . 1 . . . . 1 1 1 1 1 1 Registered Prototypes 11 | . . . 1 . . . 1 1 . . . . . . . . . 1 . . . . 1 . 1 . . . . 1 1 1 . 1 1 Zone Layout 38 | . 2 . 2 . . . 3 1 . . . . 4 . 1 . 3 4 . . . . 1 . 2 . . . . 1 5 1 2 6 . Protovariant Controls 1 | . . . . . . . . . . . . . . . . . . . . . . . . . . . . . . . . . 1 . . Fabricator Hacks 35 | . . . . . . . . 6 . . . . 4 . . . . 4 . . . . . . 6 . . . . 11 . . 2 2 . Load Schematic 16 | . . . . . . . . 2 . . . . 2 . . . . 2 . . . . . . 3 . . . . 5 . . 1 1 . Build 19 | . . . . . . . . 4 . . . . 2 . . . . 2 . . . . . . 3 . . . . 6 . . 1 1 . Repair Station Hacks 2 | . . . . . . . . . . . . . . . . . . 2 . . . . . . . . . . . . . . . . . Scan Component 1 | . . . . . . . . . . . . . . . . . . 1 . . . . . . . . . . . . . . . . . Repair 1 | . . . . . . . . . . . . . . . . . . 1 . . . . . . . . . . . . . . . . . Recycling Unit Hacks 13 | . . . . . . . . . . . . . . . . . . . . . . . . . . . . . . 13 . . . . . Recycle Component 9 | . . . . . . . . . . . . . . . . . . . . . . . . . . . . . . 9 . . . . . Process 3 | . . . . . . . . . . . . . . . . . . . . . . . . . . . . . . 3 . . . . . Report Inventory 1 | . . . . . . . . . . . . . . . . . . . . . . . . . . . . . . 1 . . . . . Scanalyzer 21 | . . . . . . . . 2 . . . . . . . . . 11 . . . . 1 . . . . . . . 1 . 6 . . Insert Component 10 | . . . . . . . . 1 . . . . . . . . . 4 . . . . 1 . . . . . . . 1 . 3 . . Analyze 11 | . . . . . . . . 1 . . . . . . . . . 7 . . . . . . . . . . . . . . 3 . . Garrison Access Hacks 15 | . . . . . . . . . . . . . 1 . . . . 4 . . . . . . 2 . . . . 3 . . 1 4 . Seal Access 15 | . . . . . . . . . . . . . 1 . . . . 4 . . . . . . 2 . . . . 3 . . 1 4 . Unauthorized Hacks 463 | . 7 . 11 . . . 22 41 . . . . 23 8 7 . 22 54 . . . . 13 . 32 4 . . 4 71 40 13 29 23 39 Terminals 126 | . 3 . 3 . . . 5 4 . . . . 9 3 3 . 10 13 . . . . 4 . 11 2 . . 2 10 18 2 7 6 11 Track 37 | . . . . . . . 1 . . . . . 3 . . . 4 5 . . . . 1 . 2 1 . . 1 3 9 . 3 . 4 Assimilate 16 | . . . . . . . . . . . . . 2 . . . 1 3 . . . . . . 3 . . . . 2 2 . 1 1 1 Botnet 51 | . 3 . 3 . . . 3 3 . . . . 3 3 3 . 3 3 . . . . 2 . 3 . . . . 3 4 2 3 4 3 Disrupt 13 | . . . . . . . 1 . . . . . . . . . 1 1 . . . . . . 2 1 . . 1 1 2 . . . 3 Operators 9 | . . . . . . . . 1 . . . . 1 . . . 1 1 . . . . 1 . 1 . . . . 1 1 . . 1 . Fabricators 31 | . . . . . . . . 3 . . . . . . . . . 7 . . . . . . 3 . . . . 10 . 3 3 2 . Report 10 | . . . . . . . . 1 . . . . . . . . . 2 . . . . . . 1 . . . . 3 . 1 1 1 . Prioritize 9 | . . . . . . . . 1 . . . . . . . . . 2 . . . . . . 1 . . . . 3 . 1 1 . . Siphon 10 | . . . . . . . . 1 . . . . . . . . . 2 . . . . . . 1 . . . . 3 . 1 1 1 . Haulers 2 | . . . . . . . . . . . . . . . . . . 1 . . . . . . . . . . . 1 . . . . . Repair Stations 1 | . . . . . . . . . . . . . . . . . . 1 . . . . . . . . . . . . . . . . . Mechanics 1 | . . . . . . . . . . . . . . . . . . 1 . . . . . . . . . . . . . . . . . Recycling Units 7 | . . . . . . . 3 . . . . . . . . . . 1 . . . . . . . . . . . 3 . . . . . Monitor 2 | . . . . . . . 1 . . . . . . . . . . . . . . . . . . . . . . 1 . . . . . Reject 2 | . . . . . . . 1 . . . . . . . . . . 1 . . . . . . . . . . . . . . . . . Mask 3 | . . . . . . . 1 . . . . . . . . . . . . . . . . . . . . . . 2 . . . . . Scanalyzers 5 | . . . 2 . . . 2 1 . . . . . . . . . . . . . . . . . . . . . . . . . . . Extract 5 | . . . 2 . . . 2 1 . . . . . . . . . . . . . . . . . . . . . . . . . . . Garrison Access 11 | . . . . . . . . 8 . . . . 1 . . . . 1 . . . . . . . . . . . . . . . 1 . Broadcast 3 | . . . . . . . . 3 . . . . . . . . . . . . . . . . . . . . . . . . . . . Restock 1 | . . . . . . . . 1 . . . . . . . . . . . . . . . . . . . . . . . . . . . Decoy 1 | . . . . . . . . 1 . . . . . . . . . . . . . . . . . . . . . . . . . . . Reprogram 5 | . . . . . . . . 3 . . . . 1 . . . . 1 . . . . . . . . . . . . . . . . . Watchers 1 | . . . . . . . . . . . . . . . . . . . . . . . . . . . . . . . . . . 1 . Data Cores Recovered 12 | . . . 1 . . . . 4 . . . . 3 1 . . . 1 . . . . . . . . . . . . . . 1 1 . Used 4 | . . . 1 . . . . 2 . . . . 1 . . . . . . . . . . . . . . . . . . . . . . Hacking Detections 147 | . 5 1 10 . . . 11 19 1 . . 1 18 10 2 . 5 13 . . . . 3 . 7 1 . . 1 10 8 1 8 9 3 Full Trace Events 14 | . 1 . 1 . . . . 2 1 . . 1 2 . . . . . . . . . . . 1 . . . . 1 1 . 2 . 1 Feedback Events 1 | . . . . . . . . . . . . . . . . . . . . . . . . . . . . . . 1 . . . . . Corruption 1 | . . . . . . . . . . . . . . . . . . . . . . . . . . . . . . 1 . . . . . Feedback Blocked . | . . . . . . . . . . . . . . . . . . . . . . . . . . . . . . . . . . . . Robot Schematics Acquired 7 | . . . . . . . . 1 . . . . . . . . . 2 . . . . . . . . . . . 1 . 1 1 1 . Robots Built . | . . . . . . . . . . . . . . . . . . . . . . . . . . . . . . . . . . . . Matter . | . . . . . . . . . . . . . . . . . . . . . . . . . . . . . . . . . . . . Time . | . . . . . . . . . . . . . . . . . . . . . . . . . . . . . . . . . . . . Total Robot Build Rating . | . . . . . . . . . . . . . . . . . . . . . . . . . . . . . . . . . . . . Part Schematics Acquired 65 | . . . 8 . . . 16 10 . . . . 3 3 . . . 8 . . 4 . . . 3 . . . . 4 1 . 4 1 . Parts Built 21 | . . . . . . . . 5 . . . . 3 . . . . 3 . . . . . . 3 . . . . 5 . . 2 . . Matter 2914 | . . . . . . . . 798 . . . . 380 . . . . 317 . . . . . . 460 . . . . 658 . . 192 109 . Time 635 | . . . . . . . . 198 . . . . 78 . . . . 52 . . . . . . 107 . . . . 112 . . 64 24 . Total Part Build Rating 118 | . . . . . . . . 20 . . . . 15 . . . . 17 . . . . . . 16 . . . . 34 . . 16 . . Parts Repaired 1 | . . . . . . . . . . . . . . . . . . 1 . . . . . . . . . . . . . . . . . Time 62 | . . . . . . . . . . . . . . . . . . 62 . . . . . . . . . . . . . . . . . Parts Recycled 9 | . . . . . . . . . . . . . . . . . . . . . . . . . . . . . . 9 . . . . . Recycled Matter 1119 | . . . . . . . . . . . . . . . . . . . . . . . . . . . . . . 1119 . . . . . Retrieved Matter . | . . . . . . . . . . . . . . . . . . . . . . . . . . . . . . . . . . . . Retrieved Components . | . . . . . . . . . . . . . . . . . . . . . . . . . . . . . . . . . . . . Parts Scanalyzed 8 | . . . . . . . . 1 . . . . . . . . . 4 . . . . . . . . . . . . . . 3 . . Part Schematics Acquired 8 | . . . . . . . . 1 . . . . . . . . . 4 . . . . . . . . . . . . . . 3 . . Parts Damaged 1 | . . . . . . . . . . . . . . . . . . 1 . . . . . . . . . . . . . . . . . Bothacking | -11 -10 -10 -9 -9 -9 -8 -8 -7 -7 -7 -7 -6 -6 -6 -6 -6 -6 -5 -5 -5 -5 -4 -4 -4 -4 -4 -4 -4 -3 -3 -3 -2 -2 -1 -1 ------------ Run | Scr Mat Min Mat Min Exi Min Mat Fac Low Low Zio Pro Fac Ext Cet Arc Hub Fac Upp Upp Zhi Pro Fac Was Fac Upp Upp War Pro Res Qua Res Tes Acc Com Used RIF Installer . | . . . . . . . . . . . . . . . . . . . . . . . . . . . . . . . . . . . . Robots Hacked . | . . . . . . . . . . . . . . . . . . . . . . . . . . . . . . . . . . . . Non-combat . | . . . . . . . . . . . . . . . . . . . . . . . . . . . . . . . . . . . . Combat . | . . . . . . . . . . . . . . . . . . . . . . . . . . . . . . . . . . . . Robot Hacks Applied . | . . . . . . . . . . . . . . . . . . . . . . . . . . . . . . . . . . . . Relay Couplers Released . | . . . . . . . . . . . . . . . . . . . . . . . . . . . . . . . . . . . . Robots Rewired 32 | . . . . . . . . . . 1 . . . 19 . . . 1 2 . . 2 . . . . 2 . . . . . . 4 1 Allies Hacked 1 | . . . . . . . . . . . . . . . . . . . . 1 . . . . . . . . . . . . . . . Hacks Repelled . | . . . . . . . . . . . . . . . . . . . . . . . . . . . . . . . . . . . . Allies | -11 -10 -10 -9 -9 -9 -8 -8 -7 -7 -7 -7 -6 -6 -6 -6 -6 -6 -5 -5 -5 -5 -4 -4 -4 -4 -4 -4 -4 -3 -3 -3 -2 -2 -1 -1 -------- Run | Scr Mat Min Mat Min Exi Min Mat Fac Low Low Zio Pro Fac Ext Cet Arc Hub Fac Upp Upp Zhi Pro Fac Was Fac Upp Upp War Pro Res Qua Res Tes Acc Com Total Allies 83 | . . . . . . . . 4 . 1 . . 2 32 . . 1 4 2 . . 2 . . 2 . 2 . . 1 2 . 1 7 20 Largest Group 29 | . . . . . . . . 2 . 1 1 1 2 29 18 13 11 2 3 3 1 2 1 . 1 . 2 1 . 1 1 . 1 3 12 Highest-Rated Group 931 | . . . . . . . . 50 . 20 20 20 52 931 612 460 281 67 86 86 26 96 49 . 26 . 96 49 . 26 44 . 44 357 164 Highest-Rated Ally 156 | . . . . . . . . 30 . 20 20 20 26 156 156 156 37 41 30 30 26 49 49 . 26 . 49 49 . 26 44 . 44 122 58 Total Orders 68 | . . . . . . . . . . . . . 7 11 . . . 14 8 7 2 1 2 . 5 . . . . 5 2 . 4 . . STAY 5 | . . . . . . . . . . . . . . 2 . . . 1 1 1 . . . . . . . . . . . . . . . GOTO 28 | . . . . . . . . . . . . . 4 4 . . . 6 3 3 1 1 . . 1 . . . . 2 1 . 2 . . FOLLOW 25 | . . . . . . . . . . . . . 3 5 . . . 5 4 3 1 . . . 1 . . . . 1 1 . 1 . . EXPLORE 10 | . . . . . . . . . . . . . . . . . . 2 . . . . 2 . 3 . . . . 2 . . 1 . . Ally Attacks 323 | . . . . . . . . 10 . . . 1 . 54 30 11 22 10 . 9 . 5 7 . . . 13 . . . . . . 17 134 Total Damage 6602 | . . . . . . . . 197 . . . 14 . 1069 668 224 360 314 . 268 . 186 185 . . . 633 . . . . . . 270 2214 Kills 39 | . . . . . . . . 1 . . . . . 15 8 2 1 4 . 3 . . 1 . . . 1 . . . . . . 2 1 Allies Corrupted 4 | . . . . . . . . . . . . . . . . . . . . . . . . . . . . 1 . . 1 . . 2 . Allies Melted . | . . . . . . . . . . . . . . . . . . . . . . . . . . . . . . . . . . . . Intel | -11 -10 -10 -9 -9 -9 -8 -8 -7 -7 -7 -7 -6 -6 -6 -6 -6 -6 -5 -5 -5 -5 -4 -4 -4 -4 -4 -4 -4 -3 -3 -3 -2 -2 -1 -1 ------- Run | Scr Mat Min Mat Min Exi Min Mat Fac Low Low Zio Pro Fac Ext Cet Arc Hub Fac Upp Upp Zhi Pro Fac Was Fac Upp Upp War Pro Res Qua Res Tes Acc Com Robot Analysis Total 22 | . . . . . . . 1 1 . . . . . 1 . . 2 3 . . 4 . . . 1 . . . . . 2 . 3 4 . Derelict Logs Recovered 15 | . . 1 . . . . . . 3 1 1 1 . . . . . . 1 2 . 1 . . . 3 1 . . . . . . . . Drone Launches 33 | . . . . . . . . . . . . . . . . . . 3 . . . . 2 . 16 . . . . 4 . . 6 2 . Drone Recoveries . | . . . . . . . . . . . . . . . . . . . . . . . . . . . . . . . . . . . . Exploration | -11 -10 -10 -9 -9 -9 -8 -8 -7 -7 -7 -7 -6 -6 -6 -6 -6 -6 -5 -5 -5 -5 -4 -4 -4 -4 -4 -4 -4 -3 -3 -3 -2 -2 -1 -1 ------------- Run | Scr Mat Min Mat Min Exi Min Mat Fac Low Low Zio Pro Fac Ext Cet Arc Hub Fac Upp Upp Zhi Pro Fac Was Fac Upp Upp War Pro Res Qua Res Tes Acc Com Turns Passed 22570 | 11 444 292 774 83 9 339 727 1421 267 411 411 504 2051 1043 197 79 420 1681 470 345 105 494 1027 23 1488 304 637 307 337 1290 503 169 830 2643 434 Spaces Moved 40454 | 21 681 350 922 227 28 642 1241 2794 607 712 938 835 3731 1390 313 141 857 2664 826 725 169 717 1655 78 2095 634 988 929 573 2710 1232 380 1629 5215 805 Core 136 | 21 103 . . . . . . . . . . . . 7 1 . . 2 . . . . . . . . . . 2 . . . . . . Treads . | . . . . . . . . . . . . . . . . . . . . . . . . . . . . . . . . . . . . Legs . | . . . . . . . . . . . . . . . . . . . . . . . . . . . . . . . . . . . . Wheels . | . . . . . . . . . . . . . . . . . . . . . . . . . . . . . . . . . . . . Hover . | . . . . . . . . . . . . . . . . . . . . . . . . . . . . . . . . . . . . Flight 40318 | . 578 350 922 227 28 642 1241 2794 607 712 938 835 3731 1383 312 141 857 2662 826 725 169 717 1655 78 2095 634 988 929 571 2710 1232 380 1629 5215 805 Fastest Speed 15 | 50 40 40 32 32 32 32 32 32 32 32 32 26 20 20 29 29 29 20 20 29 29 20 20 29 20 20 26 20 29 20 20 29 18 15 15 Average Speed 29 | 50 41 47 33 32 32 32 32 32 32 32 32 31 29 29 30 29 29 28 28 29 29 28 29 29 30 29 28 28 29 28 28 29 27 24 22 Slowest Speed 120 | 50 100 120 40 32 32 32 102 32 32 32 32 32 32 100 100 29 32 100 29 29 29 29 35 29 32 32 29 29 100 32 29 107 96 27 24 Overloaded Moves 974 | . . . . . . . . . . . . 13 37 19 . . . 79 8 . . 29 72 . 113 55 7 149 . 20 54 . 5 197 117 Propulsion Burnouts . | . . . . . . . . . . . . . . . . . . . . . . . . . . . . . . . . . . . . Robots Hopped 397 | . 14 3 11 1 . 6 8 49 . . . . 84 6 . 4 16 28 . 6 . 1 11 . 40 . . . 1 24 17 8 14 36 9 Cave-ins Triggered . | . . . . . . . . . . . . . . . . . . . . . . . . . . . . . . . . . . . . Exploration Rate (%) 70 | 3 92 85 75 50 8 98 91 68 80 72 83 90 78 96 91 92 82 63 83 70 60 80 35 70 61 82 94 93 61 57 78 19 94 80 17 Regions Visited 35 Branch Regions 23 Pre-discovered Areas 6 | . . . . . . . . . . . 1 . . . . . . . . . 3 1 . . . . 1 . . . . . . . . Known Exits Taken 19 | . 1 1 1 . . . . 1 1 . . 1 1 1 . 1 1 1 . . . 1 . . 1 1 . . 1 1 1 . 1 1 . Unknown Exits Taken 14 | 1 . . . 1 1 1 1 . . 1 1 . . . 1 . . . 1 1 1 . . . . . 1 1 . . . 1 . . . Scrap Searched 31 | . . 1 . 1 . 2 . . 1 2 2 3 . . . . . . 4 2 . 5 . . . 4 4 . . . . . . . . Spaces Dug 30 | . . . . . . . . . . . . . . . . . . . . 2 . . . . . . . . . . 4 1 14 7 2 Terrain Destroyed 771 | . . . 7 . . 32 46 64 6 9 . 18 116 36 14 . 152 87 24 6 . . 28 . 40 . 4 . . 20 4 4 14 38 2 Melee 28 | . . . . . . . . . . . . . . . . . . . . . . . . . . . . . . . 4 1 14 7 2 Projectile 41 | . . . . . . . . . . . . . . . . . 1 12 . 4 . . 9 . 14 . 1 . . . . . . . . AOE 702 | . . . 7 . . 32 46 64 6 9 . 18 116 36 14 . 151 75 24 2 . . 19 . 26 . 3 . . 20 . 3 . 31 . Actions | -11 -10 -10 -9 -9 -9 -8 -8 -7 -7 -7 -7 -6 -6 -6 -6 -6 -6 -5 -5 -5 -5 -4 -4 -4 -4 -4 -4 -4 -3 -3 -3 -2 -2 -1 -1 --------- Run | Scr Mat Min Mat Min Exi Min Mat Fac Low Low Zio Pro Fac Ext Cet Arc Hub Fac Upp Upp Zhi Pro Fac Was Fac Upp Upp War Pro Res Qua Res Tes Acc Com Total 47346 | 20 743 419 1209 228 27 722 1439 3123 647 838 1048 962 4299 1876 386 162 941 3232 1004 804 205 906 1971 77 2578 704 1209 964 674 3048 1312 419 1928 6234 988 Wait 2775 | . 26 19 178 . . 47 84 208 13 75 111 20 321 251 36 15 33 292 108 27 14 92 86 . 159 7 96 4 23 102 30 11 77 190 20 Move 39648 | 20 653 343 899 224 27 629 1224 2697 606 711 937 834 3571 1376 312 134 825 2608 825 712 168 714 1633 77 2017 633 987 928 570 2660 1199 364 1600 5143 788 Hop 368 | . 13 3 11 1 . 6 8 47 . . . . 75 6 . 2 15 26 . 6 . 1 11 . 37 . . . 1 24 15 7 13 32 8 Pick Up 51 | . . . . . . . 2 1 . 1 . . 5 . . . 1 3 . . 1 . . . 1 . . 1 . 26 3 . 6 . . Fast Attach 356 | . 6 1 7 . . . 9 30 . . . 2 12 . 8 . 4 9 . . 7 . 12 . 19 . 3 12 4 33 7 8 61 97 5 Attach 9 | . . . . . . . . . . . . . 1 . . 1 . 2 . 1 . . . . 1 . . . . 1 1 . 1 . . Detach 7 | . . . . . . . . . . . . . 1 . 1 . . 2 . . . . . . 1 . . . . 1 1 . . . . Swap 147 | . . 1 1 . . 1 1 2 . 1 . 6 26 4 . 1 4 14 8 9 . 10 16 . 11 . 7 1 3 2 10 2 4 2 . Drop 358 | . 2 1 4 . . 1 7 24 . . . 1 15 . 8 1 . 9 . . 6 . 10 . 14 . 2 11 5 49 10 8 69 99 2 Fire 2277 | . 41 27 77 3 . 21 56 71 16 28 . 54 150 73 14 6 33 153 26 36 9 41 145 . 172 41 79 4 57 97 14 5 43 562 123 Melee 48 | . . . . . . . . . . . . . . . . . . . . . . . . . . . . 1 . . 19 1 18 7 2 Ram . | . . . . . . . . . . . . . . . . . . . . . . . . . . . . . . . . . . . . Kick . | . . . . . . . . . . . . . . . . . . . . . . . . . . . . . . . . . . . . Crush . | . . . . . . . . . . . . . . . . . . . . . . . . . . . . . . . . . . . . Escape Stasis 112 | . . . . . . . . . . . . . 8 18 . . . 1 . . . . 10 . 31 . . . . 1 . . 20 8 15 Rewire 163 | . . . . . . . . . . 8 . . . 99 . . . 10 6 . . 19 . . . . 7 . . . . . . 12 2 Trap . | . . . . . . . . . . . . . . . . . . . . . . . . . . . . . . . . . . . . Miscellaneous 1027 | . 2 24 32 . . 17 48 43 12 14 . 45 114 49 7 2 26 103 31 13 . 29 48 . 115 23 28 2 11 52 3 13 16 82 23 Route ------- -11/Scrapyard -10/Materials (discovered 5 exits: *Mat x3 / *Min x2) -10/Mines (discovered 2 exits: *Mat x2) -9/Materials (discovered 4 exits: *Mat x2 / *Min x2) -9/Mines -9/Exiles -8/Mines (discovered 2 exits: *Mat x2) -8/Materials (discovered 3 exits: *Fac x3) -7/Factory (discovered 8 exits: *Fac x4 / *Sto x2 / *Low x2) -7/Lower Caves -7/Lower Caves (discovered 2 exits: *Fac / *Zio) -7/Zion -6/Proximity Caves -6/Factory (discovered 8 exits: *Fac x4 / *Low x2 / *Ext x2) -6/Extension (discovered 3 exits: *Fac x2 / *Cet) -6/Cetus (discovered 3 exits: *Fac x2 / *Arc) -6/Archives (discovered 3 exits: *Fac / *Hub x2) -6/Hub_04(d) (discovered 4 exits: *Fac x4) -5/Factory (discovered 6 exits: *Fac x4 / *Upp x2) -5/Upper Caves -5/Upper Caves (discovered 2 exits: *Fac / *Zhi) -5/Zhirov -4/Proximity Caves -4/Factory (discovered 5 exits: *Res x4 / Upp) -4/Waste -4/Factory (discovered 7 exits: *Res x4 / *Upp x2 / *Arm) -4/Upper Caves (discovered 2 exits: *Upp / *War) -4/Upper Caves (discovered 2 exits: *Res / *War) -4/Warlord -3/Proximity Caves -3/Research (discovered 5 exits: *Res x3 / *Qua x2) -3/Quarantine -2/Research (discovered 4 exits: Acc x3 / *Tes) -2/Testing -1/Access (discovered 2 exits: Sur / *Com) -1/Command (discovered 2 exits: Sur x2) History --------- Turn | Location | Event 3 | -11/Scrapyard | Discovered new exit (range 15) 12 | -11/Scrapyard | Entered Materials 17 | -10/Materials | Upgraded with Weapon slot (x1) 55 | -10/Materials | Identified exit to Mines 81 | -10/Materials | Discovered new exit (range 13) 95 | -10/Materials | Central database locked down 303 | -10/Materials | Build established: Hacker-Mutant 305 | -10/Materials | Discovered new exit (range 14) 377 | -10/Materials | Identified exit to Materials 403 | -10/Materials | Reached level 2 456 | -10/Materials | Entered Mines 475 | -10/Mines | Core integrity fell below 50% 596 | -10/Mines | Discovered exit to Materials (range 4) 606 | -10/Mines | Central database locked down 610 | -10/Mines | Reached level 3 682 | -10/Mines | Discovered exit to Materials (range 5) 706 | -10/Mines | Learned 4 Materials zone layouts 748 | -10/Mines | Entered Materials 750 | -9/Materials | Reached level 4 751 | -9/Materials | Upgraded with Utility slot (x1) 885 | -9/Materials | Identified exit to Mines 919 | -9/Materials | Upgraded with Propulsion slot (x1) 948 | -9/Materials | Discovered new exit (range 8) 1030 | -9/Materials | Reached level 5 1042 | -9/Materials | Upgraded with Weapon slot (x1) 1054 | -9/Materials | Central database locked down 1224 | -9/Materials | Build established: Hacker-Sprinter 1235 | -9/Materials | Reached level 6 1401 | -9/Materials | Reached level 7 1423 | -9/Materials | Core integrity fell below 50% 1434 | -9/Materials | Discovered new exit (range 14) 1522 | -9/Materials | Entered Mines 1523 | -9/Mines | Assembled infested the area 1528 | -9/Mines | Assisted by a Guerilla fighting off Assembled 1603 | -9/Mines | Deemed a non-threat by the Exiles lab entrance 1603 | -9/Mines | Discovered new exit (range 5) 1605 | -9/Mines | Entered Exiles 1607 | -9/Exiles | Reached level 8 1610 | -9/Exiles | Discovered new exit (range 15) 1613 | -9/Exiles | Upgraded with Utility slot (x1) 1614 | -9/Exiles | Entered Mines 1663 | -8/Mines | Core integrity fell below 20% 1805 | -8/Mines | Discovered new exit (range 7) 1843 | -8/Mines | Reached level 9 1930 | -8/Mines | Discovered new exit (range 11) 1953 | -8/Mines | Entered Materials 1955 | -8/Materials | Reached level 10 2026 | -8/Materials | Core integrity fell below 50% 2080 | -8/Materials | Reached level 11 2116 | -8/Materials | Discovered new exit (range 16) 2322 | -8/Materials | Reached level 12 2453 | -8/Materials | Upgraded with Power slot (x1) 2543 | -8/Materials | Discovered new exit (range 9) 2565 | -8/Materials | Discovered new exit (range 9) 2680 | -8/Materials | Entered Factory 2682 | -7/Factory | Reached level 13 2688 | -7/Factory | Upgraded with Utility slot (x1) 2704 | -7/Factory | Upgraded with Utility slot (x1) 2704 | -7/Factory | Upgraded with Weapon slot (x1) 2719 | -7/Factory | Garrison activated, responded to threat 2726 | -7/Factory | Reached level 14 2802 | -7/Factory | Discovered new exit (range 9) 2941 | -7/Factory | Fabricated Core Analyzer? 3002 | -7/Factory | Identified exit to Storage 3002 | -7/Factory | Identified exit to Lower Caves 3059 | -7/Factory | Reached level 15 3063 | -7/Factory | Garrison activated, responded to threat 3423 | -7/Factory | Discovered new exit (range 16) 3440 | -7/Factory | Identified exit to Factory 3605 | -7/Factory | Central database locked down 3617 | -7/Factory | Garrison activated, responded to threat 3617 | -7/Factory | Reached level 16 3649 | -7/Factory | Upgraded with Utility slot (x1) 3791 | -7/Factory | Fabricated Prc. Shock Rifle (x1) 3870 | -7/Factory | Fabricated Prc. Shock Rifle (x1) 3880 | -7/Factory | First assault squad dispatched 3939 | -7/Factory | Fabricated Prc. Shock Rifle (x1) 4033 | -7/Factory | Garrison activated, responded to threat 4101 | -7/Factory | Entered Lower Caves 4154 | -7/Lower Caves | Learned Factory terminal intel 4170 | -7/Lower Caves | Identified exit to Lower Caves 4217 | -7/Lower Caves | Encountered a Warlord checkpoint 4275 | -7/Lower Caves | Learned Factory stockpile data 4368 | -7/Lower Caves | Entered another Lower Caves area 4370 | -7/Lower Caves | Reached level 17 4371 | -7/Lower Caves | Discovered exit to Factory (range 10) 4374 | -7/Lower Caves | Learned location of 1 exit from Factory 4400 | -7/Lower Caves | Attracted the attention of an 0b10 checkpoint 4540 | -7/Lower Caves | Spotted B-75 Beast 4589 | -7/Lower Caves | Destroyed B-75 Beast 4678 | -7/Lower Caves | Discovered new exit (range 14) 4728 | -7/Lower Caves | Attacked by a delusional Derelict stockpiling parts 4779 | -7/Lower Caves | Entered Zion 4779 | -7/Zion | Accompanied by 1 ally 4796 | -7/Zion | Discovered new exit (range 13) 4816 | -7/Zion | Given A8's code to call for help 4922 | -7/Zion | Learned Factory interactive machine intel 4935 | -7/Zion | Loaded intel: 4 derelict terminal locations 5190 | -7/Zion | Entered Proximity Caves 5190 | -6/Proximity Caves | Accompanied by 1 ally 5195 | -6/Proximity Caves | Attracted the attention of an 0b10 base 5203 | -6/Proximity Caves | Reached level 18 5240 | -6/Proximity Caves | Core integrity fell below 50% 5256 | -6/Proximity Caves | Destroyed 7 combat bots 5275 | -6/Proximity Caves | Core integrity fell below 20% 5349 | -6/Proximity Caves | Upgraded with Utility slot (x1) 5391 | -6/Proximity Caves | Attracted the attention of an 0b10 checkpoint 5493 | -6/Proximity Caves | Discovered exit to Factory (range 8) 5518 | -6/Proximity Caves | Learned location of 1 exit from Proximity Caves 5534 | -6/Proximity Caves | Spotted B-75 Beast 5549 | -6/Proximity Caves | Destroyed B-75 Beast 5593 | -6/Proximity Caves | Reached level 19 5614 | -6/Proximity Caves | Destroyed 8 combat bots 5694 | -6/Proximity Caves | Entered Factory 5695 | -6/Factory | Identified exit to Extension 5697 | -6/Factory | Loaded intel: 47 interactive machine locations 5698 | -6/Factory | Loaded intel: 21 terminal locations 5736 | -6/Factory | Identified exit to Lower Caves 5746 | -6/Factory | Identified exit to Factory 5885 | -6/Factory | Fabricated Force Rifle (x2) 5981 | -6/Factory | Upgraded with Propulsion slot (x1) 6142 | -6/Factory | Reached level 20 6211 | -6/Factory | Destroyed 7 combat bots 6547 | -6/Factory | Central database locked down 6744 | -6/Factory | First assault squad dispatched 6984 | -6/Factory | Spotted B-75 Beast 7120 | -6/Factory | Reached level 21 7159 | -6/Factory | Upgraded with Utility slot (x1) 7386 | -6/Factory | Destroyed B-75 Beast 7482 | -6/Factory | Fabricated Imp. Armor Integrity Analyzer (x1) 7505 | -6/Factory | Local fabrication network quarantined 7707 | -6/Factory | High security lockdown imminent 7745 | -6/Factory | Entered Extension 7745 | -6/Extension | Accompanied by 1 ally 7821 | -6/Extension | Destroyed 7 combat bots 7859 | -6/Extension | Rescued a captive Derelict 7860 | -6/Extension | Rescued a captive Derelict 7968 | -6/Extension | Rescued a captive Derelict 8062 | -6/Extension | Identified exit to Cetus 8063 | -6/Extension | Rescued a captive Derelict 8091 | -6/Extension | Spotted B-75 Beast 8092 | -6/Extension | Rescued a captive Derelict 8092 | -6/Extension | Rescued a captive Derelict 8220 | -6/Extension | Disrupted transfer network 8248 | -6/Extension | Destroyed B-75 Beast 8252 | -6/Extension | Spotted B-75 Beast 8282 | -6/Extension | Core integrity fell below 50% 8283 | -6/Extension | Destroyed B-75 Beast 8364 | -6/Extension | Build established: Commander-Sprinter 8480 | -6/Extension | Rescued a captive Derelict 8481 | -6/Extension | Rescued a captive Derelict 8499 | -6/Extension | Rescued a captive Derelict 8552 | -6/Extension | Rescued a captive Derelict 8552 | -6/Extension | Rescued a captive Derelict 8557 | -6/Extension | Rescued a captive Derelict 8558 | -6/Extension | Central database locked down 8561 | -6/Extension | Rescued a captive Derelict 8564 | -6/Extension | Rescued A7 8612 | -6/Extension | Reached level 22 8788 | -6/Extension | Entered Cetus 8788 | -6/Cetus | Accompanied by 18 allies 8793 | -6/Cetus | Acquired a Cetus Manufacturing Module code from A7 8794 | -6/Cetus | Spotted Cetus Guard 8794 | -6/Cetus | Spotted Cetus Guard 8801 | -6/Cetus | Allies destroyed Cetus Guard 8801 | -6/Cetus | Spotted Cetus Guard 8802 | -6/Cetus | Spotted Cetus Guard 8809 | -6/Cetus | Allies destroyed Cetus Guard 8810 | -6/Cetus | Allies destroyed Cetus Guard 8813 | -6/Cetus | Allies destroyed Cetus Guard 8841 | -6/Cetus | Discovered exit to Factory (range 15) 8885 | -6/Cetus | Escorted A7 to Cetus Mainframe 8897 | -6/Cetus | Discovered new exit (range 15) 8903 | -6/Cetus | Spotted Cetus Guard 8903 | -6/Cetus | Spotted Cetus Guard 8911 | -6/Cetus | Destroyed Cetus Guard 8913 | -6/Cetus | Spotted Cetus Guard 8913 | -6/Cetus | Spotted Cetus Guard 8923 | -6/Cetus | Allies destroyed Cetus Guard 8925 | -6/Cetus | Destroyed Cetus Guard 8930 | -6/Cetus | Allies destroyed Cetus Guard 8934 | -6/Cetus | Discovered exit to Factory (range 18) 8937 | -6/Cetus | Met Revision 17 8985 | -6/Cetus | Entered Archives 8985 | -6/Archives | Accompanied by 13 allies 8990 | -6/Archives | Received a hacking code to weaken MAIN.C 9016 | -6/Archives | Unable to access archive contents 9016 | -6/Archives | Unable to access archive contents 9016 | -6/Archives | Discovered exit to Factory (range 18) 9021 | -6/Archives | Discovered new exit (range 17) 9023 | -6/Archives | Unable to access archive contents 9024 | -6/Archives | Discovered new exit (range 14) 9039 | -6/Archives | Identified exit to Hub_04(d) 9064 | -6/Archives | Entered Hub_04(d) 9064 | -6/Hub_04(d) | Accompanied by 11 allies 9089 | -6/Hub_04(d) | Discovered exit to Factory (range 18) 9184 | -6/Hub_04(d) | Discovered exit to Factory (range 15) 9190 | -6/Hub_04(d) | Network Hub disabled 9190 | -6/Hub_04(d) | Network Hub disabled 9265 | -6/Hub_04(d) | Network Hub disabled 9266 | -6/Hub_04(d) | Discovered exit to Factory (range 20) 9283 | -6/Hub_04(d) | Spotted Lightning 9285 | -6/Hub_04(d) | Spotted Lightning 9286 | -6/Hub_04(d) | Spotted Lightning 9338 | -6/Hub_04(d) | Discovered exit to Factory (range 16) 9345 | -6/Hub_04(d) | Build established: Hacker-Scout 9432 | -6/Hub_04(d) | Spotted Lightning 9432 | -6/Hub_04(d) | Spotted Lightning 9432 | -6/Hub_04(d) | Spotted Lightning 9460 | -6/Hub_04(d) | Spotted Lightning 9466 | -6/Hub_04(d) | System corruption reached 10% 9484 | -6/Hub_04(d) | Entered Factory 9485 | -5/Factory | Core integrity fell below 50% 9486 | -5/Factory | Reached level 23 9486 | -5/Factory | Upgraded with Utility slot (x1) 9544 | -5/Factory | Identified exit to Factory 9544 | -5/Factory | Identified exit to Upper Caves 9784 | -5/Factory | First assault squad dispatched 9943 | -5/Factory | Destroyed 7 combat bots 10190 | -5/Factory | Destroyed 10 combat bots 10233 | -5/Factory | Reached level 24 10242 | -5/Factory | Garrison activated, responded to threat 10342 | -5/Factory | Fabricated Force Rifle (x2) 10681 | -5/Factory | Destroyed 9 combat bots 10943 | -5/Factory | Repaired Broken Imp. KE Penetrator? 11008 | -5/Factory | Central database locked down 11042 | -5/Factory | High security lockdown imminent 11049 | -5/Factory | Fabricated Adv. Target Analyzer (x1) 11122 | -5/Factory | High security lockdown engaged 11165 | -5/Factory | Entered Upper Caves 11165 | -5/Upper Caves | Accompanied by 1 ally 11347 | -5/Upper Caves | Learned location of 1 exit from Factory 11467 | -5/Upper Caves | Attracted the attention of an 0b10 outpost 11516 | -5/Upper Caves | Destroyed 9 combat bots 11549 | -5/Upper Caves | Discovered new exit (range 16) 11635 | -5/Upper Caves | Entered another Upper Caves area 11635 | -5/Upper Caves | Accompanied by 3 allies 11637 | -5/Upper Caves | Reached level 25 11637 | -5/Upper Caves | Upgraded with Utility slot (x1) 11718 | -5/Upper Caves | Discovered exit to Factory (range 12) 11750 | -5/Upper Caves | Learned location of 1 exit from Factory 11776 | -5/Upper Caves | Spotted B-75 Beast 11821 | -5/Upper Caves | Destroyed B-75 Beast 11957 | -5/Upper Caves | Discovered new exit (range 18) 11980 | -5/Upper Caves | Entered Zhirov 11980 | -5/Zhirov | Accompanied by 1 ally 11980 | -5/Zhirov | Discovered new exit (range 3) 11986 | -5/Zhirov | Met Zhirov 11991 | -5/Zhirov | Learned location of Quarantine (-3) 11991 | -5/Zhirov | Learned location of Testing (-2) 11991 | -5/Zhirov | Learned location of Command (-1) 11994 | -5/Zhirov | Zhirov requested help retrieving the SGEMP Prototype 11999 | -5/Zhirov | Found Alien Artifact 11999 | -5/Zhirov | Identified Integrated Dissipator 11999 | -5/Zhirov | Installed Integrated Dissipator, increased core heat dissipation (+2%) 12006 | -5/Zhirov | Found Alien Artifact 12085 | -5/Zhirov | Entered Proximity Caves 12085 | -4/Proximity Caves | Accompanied by 1 ally 12138 | -4/Proximity Caves | Learned location of Armory (-4) 12326 | -4/Proximity Caves | Attracted the attention of an 0b10 outpost 12487 | -4/Proximity Caves | Reached level 26 12579 | -4/Proximity Caves | Entered Factory 12579 | -4/Factory | Accompanied by 1 ally 12580 | -4/Factory | Identified exit to Upper Caves 12580 | -4/Factory | Identified exit to Research 13111 | -4/Factory | Discovered exit to Research (range 18) 13116 | -4/Factory | First assault squad dispatched 13146 | -4/Factory | System corruption reached 10% 13241 | -4/Factory | Reached level 27 13244 | -4/Factory | Upgraded with Utility slot (x1) 13414 | -4/Factory | Identified Transdimensional Reconstructor 13419 | -4/Factory | Spotted B-86 Titan 13606 | -4/Factory | Sucked down chute 13606 | -4/Factory | Entered Waste 13609 | -4/Waste | Spotted C-40 Crusher 13612 | -4/Waste | Spotted C-40 Crusher 13617 | -4/Waste | Spotted C-40 Crusher 13618 | -4/Waste | Spotted C-40 Crusher 13620 | -4/Waste | Spotted C-40 Crusher 13621 | -4/Waste | EMP discharged 13622 | -4/Waste | Spotted C-40 Crusher 13626 | -4/Waste | Discovered new exit (range 10) 13629 | -4/Waste | Entered Factory 13669 | -4/Factory | Identified exit to Armory 13685 | -4/Factory | Core integrity fell below 50% 14129 | -4/Factory | First assault squad dispatched 14480 | -4/Factory | Found Prototype Device 14480 | -4/Factory | Identified Exp. ECM Suite 14642 | -4/Factory | Spotted B-86 Titan 14763 | -4/Factory | Destroyed B-86 Titan 15000 | -4/Factory | Reached level 28 15070 | -4/Factory | Fabricated Cld. Fission Core (x1) 15096 | -4/Factory | Fabricated Hyp. Gauss Rifle (x2) 15117 | -4/Factory | Entered Upper Caves 15118 | -4/Upper Caves | Learned Research terminal intel 15174 | -4/Upper Caves | A Derelict revealed a hidden shortcut to "reach the base" 15230 | -4/Upper Caves | Attracted the attention of an 0b10 checkpoint 15240 | -4/Upper Caves | Learned 8 Research zone layouts 15292 | -4/Upper Caves | Learned 4 Research zone layouts 15321 | -4/Upper Caves | Attracted the attention of an 0b10 base 15321 | -4/Upper Caves | Identified exit to Upper Caves 15421 | -4/Upper Caves | Entered another Upper Caves area 15442 | -4/Upper Caves | Discovered exit to Research (range 7) 15633 | -4/Upper Caves | Attracted the attention of an 0b10 checkpoint 15778 | -4/Upper Caves | Attracted the attention of an 0b10 outpost 15847 | -4/Upper Caves | Discovered new exit (range 12) 16058 | -4/Upper Caves | Entered Warlord 16058 | -4/Warlord | Accompanied by 1 ally 16068 | -4/Warlord | Discovered new exit (range 15) 16076 | -4/Warlord | System corruption cleaned by Quarantine Array 16119 | -4/Warlord | Received a Watcher feed algorithm from an ecstatic Tinkerer 16145 | -4/Warlord | Visited the Vortex Lab 16148 | -4/Warlord | Found Prototype Piercing Weapon 16148 | -4/Warlord | Identified Vortex Lance 16167 | -4/Warlord | Warlord's base attacked by MAIN.C 16197 | -4/Warlord | Met Warlord 16287 | -4/Warlord | Found Prototype Reactor 16287 | -4/Warlord | Identified Vortex Chain Reactor 16296 | -4/Warlord | Found Prototype Device 16296 | -4/Warlord | Identified Exp. Focal Shield 16299 | -4/Warlord | Found Prototype Hackware 16299 | -4/Warlord | Identified Ghost Barrier 16330 | -4/Warlord | Opened side exit 16365 | -4/Warlord | Entered Proximity Caves 16381 | -3/Proximity Caves | Attracted the attention of an 0b10 base 16563 | -3/Proximity Caves | Reached level 29 16585 | -3/Proximity Caves | Build established: Wizard-Scout 16659 | -3/Proximity Caves | Attracted the attention of an 0b10 checkpoint 16702 | -3/Proximity Caves | Entered Research 16704 | -3/Research | Loaded intel: 19 terminal locations 16709 | -3/Research | Garrison activated, responded to threat 16809 | -3/Research | Identified exit to Research 16813 | -3/Research | Identified exit to Quarantine 16902 | -3/Research | Revision forces began assault on 0b10 16913 | -3/Research | Destroyed 7 combat bots 16941 | -3/Research | Fabricated Enh. Quantum Rifle? 17016 | -3/Research | Reached level 30 17016 | -3/Research | Met up with Revision 17++ 17027 | -3/Research | Upgraded with Utility slot (x1) 17122 | -3/Research | Fabricated Hyp. Gauss Rifle (x2) 17152 | -3/Research | Fabricated Cld. Fission Core (x1) 17169 | -3/Research | Spotted B-86 Titan 17385 | -3/Research | Spotted B-86 Titan 17402 | -3/Research | Research terminal network offline 17565 | -3/Research | Found Prototype Hackware 17565 | -3/Research | Identified Exp. System Shield 17582 | -3/Research | Spotted Striker 17594 | -3/Research | Destroyed Striker 17636 | -3/Research | Spotted Striker 17661 | -3/Research | Found Enh. Force Lance 17675 | -3/Research | Destroyed Striker 17712 | -3/Research | Spotted Striker 17712 | -3/Research | Spotted Striker 17722 | -3/Research | Destroyed Striker 17729 | -3/Research | Destroyed Striker 17761 | -3/Research | Found Gamma Bomb Array 17778 | -3/Research | Destroyed 7 combat bots 17809 | -3/Research | Spotted Striker 17831 | -3/Research | Destroyed Striker 17992 | -3/Research | Entered Quarantine 18027 | -3/Quarantine | Found Alien Artifact 18147 | -3/Quarantine | Identified Subatomic Replicator 18222 | -3/Quarantine | Found Prototype Slashing Weapon 18222 | -3/Quarantine | Identified Vibroblade 18262 | -3/Quarantine | Found Alien Artifact 18282 | -3/Quarantine | First assault squad dispatched 18296 | -3/Quarantine | Met incapacitated Sigix Warrior 18296 | -3/Quarantine | Lockdown squad dispatched 18363 | -3/Quarantine | Identified Core Reset Matrix 18363 | -3/Quarantine | Used Core Reset Matrix 18367 | -3/Quarantine | Sensed 3 artifacts in vicinity 18387 | -3/Quarantine | Spotted Lightning 18485 | -3/Quarantine | Spotted Alpha 7 18495 | -3/Quarantine | Entered Research 18495 | -2/Research | Warlord forces began assault on 0b10 18497 | -2/Research | Reached level 31 18581 | -2/Research | Identified exit to Access 18590 | -2/Research | Spotted B-90 Cyclops 18605 | -2/Research | Research machine network offline 18615 | -2/Research | Discovered new exit (range 12) 18643 | -2/Research | Met up with Warlord 18663 | -2/Research | Borebot progress halted 18664 | -2/Research | Entered Testing 18666 | -2/Testing | Reached level 32 18694 | -2/Testing | Found Unknown Launcher 18694 | -2/Testing | Identified Fusion Bomb Launcher 18714 | -2/Testing | Found Prototype Device 18714 | -2/Testing | Identified Exp. Transmission Jammer 18760 | -2/Testing | Spotted PP-MVJLGUW5XV 18761 | -2/Testing | Spotted PP-WF2XGUX8NF 18769 | -2/Testing | Destroyed PP-WF2XGUX8NF 18776 | -2/Testing | Found Prototype Processor 18776 | -2/Testing | Identified Exp. Target Analyzer 18778 | -2/Testing | Found Prototype Device 18778 | -2/Testing | Identified Exp. Weapon Cycler 18809 | -2/Testing | Protovariant out of control (PP-MVJLGUW5XV) 18809 | -2/Testing | Unleashed a protovariant (PP-MVJLGUW5XV) 18877 | -2/Testing | Found Prototype Processor 18877 | -2/Testing | Identified Exp. Signal Interpreter 18953 | -2/Testing | Spotted Striker 19059 | -2/Testing | Spotted Striker 19062 | -2/Testing | Destroyed Striker 19063 | -2/Testing | Spotted Alpha 7 19067 | -2/Testing | Destroyed Striker 19099 | -2/Testing | Destroyed Alpha 7 19249 | -2/Testing | Found Prototype Energy Cannon 19249 | -2/Testing | Identified Hpw. Disruptor Cannon 19370 | -2/Testing | Fabricated Hyp. Railgun? 19405 | -2/Testing | Stole the SGEMP Prototype 19494 | -2/Testing | Entered Access 19495 | -1/Access | Attacked by Zhirov 19496 | -1/Access | Reached level 33 19496 | -1/Access | Upgraded with Utility slot (x1) 19552 | -1/Access | Destroyed Svarog 19609 | -1/Access | Allies destroyed Zhirov 19614 | -1/Access | Found Prototype Hackware 19614 | -1/Access | Identified Quantum Router 19617 | -1/Access | Found Prototype Processor 19617 | -1/Access | Identified Exp. Terrain Scan Processor 19672 | -1/Access | Spotted B-99 Colossus 19783 | -1/Access | Reached level 34 20145 | -1/Access | Found Prototype Device 20145 | -1/Access | Identified Exp. Shock Absorption System 20250 | -1/Access | Found Unknown Device 20250 | -1/Access | Identified Launcher Loader 20253 | -1/Access | Found Prototype Device 20253 | -1/Access | Identified Exp. Cloaking Device 20267 | -1/Access | Identified exit to Command 20377 | -1/Access | Spotted B-99 Colossus 20466 | -1/Access | Garrison activated, responded to threat 20526 | -1/Access | Destroyed 10 combat bots 20638 | -1/Access | Reached level 35 20744 | -1/Access | First assault squad dispatched 20942 | -1/Access | Found Unknown Device 20942 | -1/Access | Identified Quantum Capacitor 20960 | -1/Access | Found Unknown Device 20960 | -1/Access | Identified Antimissile System 21073 | -1/Access | Identified exit to Surface 21288 | -1/Access | Spotted B-99 Colossus 21364 | -1/Access | Destroyed 7 combat bots 21794 | -1/Access | Energy Cycler disabled 21966 | -1/Access | Reached level 36 22103 | -1/Access | High security lockdown imminent 22137 | -1/Access | Entered Command 22368 | -1/Command | Spotted M Guard 22368 | -1/Command | Spotted M Guard 22371 | -1/Command | Spotted Combat Programmer 22371 | -1/Command | Spotted Combat Programmer 22434 | -1/Command | First assault squad dispatched 22465 | -1/Command | Combat Programmer assimilated allied Enforcer 10a 22497 | -1/Command | Core integrity fell below 50% 22502 | -1/Command | Emitted hypermatrix ping 22507 | -1/Command | Assembled emerged from beneath the floor 22510 | -1/Command | Assembled emerged from beneath the floor 22518 | -1/Command | Assembled emerged from beneath the floor 22550 | -1/Command | Destroyed Combat Programmer 22569 | -1/Command | Core integrity fell below 20% 22571 | -1/Command | Destroyed by Combat Programmer with EMDS Last Messages --------------- 22567_ Slug penetrates M Guard. 22567_ as-55387 suffers critical hit. 22567_ as-55387 destroyed. 22568_ The unstable cave ceiling collapses. 22568_ HV Slug penetrates Combat Programmer. 22568_ HV Slug penetrates G-73 Enforcer. 22568_ G-73 Enforcer suffers critical hit. 22568_ G-73 Enforcer destroyed. 22568_ as-87244 destroyed. 22568_ K-01 Serf collects debris. 22569_ Penetrated by EMDS Slug. 22570_ HV Slug penetrates Combat Programmer. 22570_ as-38284 destroyed. 22571_ The unstable cave ceiling collapses. 22571_ HV Slug penetrates Combat Programmer. 22571_ Combat Programmer suffers critical hit. 22571_ HV Slug penetrates M Guard. 22571_ M Guard suffers critical hit. 22571_ Destroyed Prototype Reactor. 22571_ Penetrated by EMDS Slug. Map ----- +----------------------------------------------------+ | ??????????????????????????????????????? ????????? | | ??????????????????????????????????????# #???????? | | ?????????????????????????????????????? ???????? | | ?????????????????????????????????????? ! ???????? | | ?????????????????????????????????????? ???????? | | ?????????????????????????????????????? ???????? | | ??????????????????????????????????????# #???????? | | ??????????????????????????????????????# #???????? | | ??????????????????????????????????????# #???????? | | ??????????????????????????????????????# #######?# | | ??????????????????????????????????????# ## | | ??????????????????????????????????????# ## | | ??????????????????????????????????????# ## | | ??????????????????????????????????????# ##[ "" | | ??????????????????????????????????????# ## """" | | ??????????????????????????????????????# ## """" | | ??????????????????????????????????????# ## "" | | ??????????????????????????????????????# ## | | ??????????????????????????????????????# #? ?? | | ?????????????????????????????????????## ####+#### | | ?????????????????????????????????????# | | ????????????????????????#######??????# | | ????????#?????####??##### # ##?????# | | ????????# ???# ??# #?????# | | ????+#### # # W ### W # W ####### | | ??? @ ! * k ##### | | ??? % #???? | | ?? % k #???? | | ?? Y a g!=[ #???? | | ?? + *pY! #???? | | ??????? # # W ### W W ##########Y######## | | ???????? ? ? ???# # #??# g ## | | ?????????? #?????## ##??# ## | | ????????? #????????## ##???# "" ## | | ????????? ????????????#######????# """" ## | | ?????????????????????????????????# """" ## | | ?????????????????????????????????# ""g ## | | ?????????????????????????????????# ## | | ?????????????????????????????????# ##k | | ????????????????????????????##########/###/###### | | ????????????????????????????# + | | ????????????????????????????# ### | | ????????????????????????????# #?## | | ????????????????????????????# #??# | | ????????????????????????????# = #??# | | ????????????????????????????# = =[ #??# | | ????????????????????????????#=%=**[ #??# | | ????????????????????????????####/##############??# | | ??????????????????????????????#=%#???????????????# | | ??????????????????????????????#=%#???????????????# | +----------------------------------------------------+ Best States ------------- Heat Dissipation 99 Energy Generation 89 Energy Capacity 700 Matter Stores 300 Matter Capacity 300 Sight Range 22 Robot Scan Range 36 Terrain Scan Range 20 Terrain Scan Density 310 ECM Strength 5 Resistance: TH 25 Reclamation Efficiency 20 Weapon Cycling 30 Phase Shifting 15 Evasion (%) 96 Targeting Accuracy 19 Target Analysis 12 Core Analysis 10 Armor Integrity Analysis 66 Recoil Reduction 6 Salvage Targeting 3 Stasis Canceling 2 Offensive Hacking 25 Defensive Hacking 80 Item Schematics ----------------- Hyp. Railgun | -2/Testing | Hacked Field Propulsion Array | -2/Testing | Scanalyzed Gamma Bomb Array | -2/Testing | Scanalyzed Adv. Terrain Scanner | -2/Testing | Scanalyzed Adv. Terrain Scan Processor | -1/Access | Hacked Robot Schematics ------------------ H-88 Terminator | -2/Research | Hacked B-74 Champion | -2/Testing | Hacked G-73 Enforcer | -1/Access | Hacked Fabricated ------------ Core Analyzer | x2 | -7/Factory | Preloaded Prc. Shock Rifle | x1 | -7/Factory Prc. Shock Rifle | x1 | -7/Factory Prc. Shock Rifle | x1 | -7/Factory Force Rifle | x2 | -6/Factory Imp. Armor Integrity Analyzer | x1 | -6/Factory Force Rifle | x2 | -5/Factory Adv. Target Analyzer | x1 | -5/Factory Cld. Fission Core | x1 | -4/Factory Hyp. Gauss Rifle | x2 | -4/Factory Enh. Quantum Rifle | x2 | -3/Research | Preloaded Hyp. Gauss Rifle | x2 | -3/Research Cld. Fission Core | x1 | -3/Research Hyp. Railgun | x2 | -2/Testing Alien Tech Used ----------------- Integrated Dissipator Core Reset Matrix Achievements -------------- Beloved Great Explorer Main Advantage Revising The Future Revolutionary Research Challenges ------------ None RPGLIKE | -11 -10 -10 -9 -9 -9 -8 -8 -7 -7 -7 -7 -6 -6 -6 -6 -6 -6 -5 -5 -5 -5 -4 -4 -4 -4 -4 -4 -4 -3 -3 -3 -2 -2 -1 -1 --------- Run | Scr Mat Min Mat Min Exi Min Mat Fac Low Low Zio Pro Fac Ext Cet Arc Hub Fac Upp Upp Zhi Pro Fac Was Fac Upp Upp War Pro Res Qua Res Tes Acc Com Levels Raised 35 | . 1 1 4 . 1 1 3 4 . 1 . 2 2 1 . . . 2 . 1 . 1 1 . 1 . . . 1 1 . 1 1 4 . XP Earned 56713 | 3000 1660 1750 6427 500 200 2150 5084 5577 582 580 152 2406 3264 1252 313 147 555 2728 632 253 73 1333 1724 32 1180 184 413 146 848 1921 900 1419 1307 4940 1081 XP Spent 53880 | . 4410 1300 4650 . 2900 . 1450 10620 . 750 . 2000 4650 . 400 . . 2600 . 2900 . . 3200 . 800 . . . . 3500 . . 900 5650 1200 Upgrades 67 | . 13 2 11 . 3 . 4 15 . 1 . 1 4 . 2 . . 1 . 1 . . 1 . 1 . . . . 1 . . 1 3 2 Power Slot 1 | . . . . . . . 1 . . . . . . . . . . . . . . . . . . . . . . . . . . . . Propulsion Slot 2 | . . . 1 . . . . . . . . . 1 . . . . . . . . . . . . . . . . . . . . . . Utility Slot 12 | . . . 1 . 1 . . 3 . . . 1 1 . . . . 1 . 1 . . 1 . . . . . . 1 . . . 1 . Weapon Slot 3 | . 1 . 1 . . . . 1 . . . . . . . . . . . . . . . . . . . . . . . . . . . Heat Dissipation 9 | . . . 5 . . . . 4 . . . . . . . . . . . . . . . . . . . . . . . . . . . Energy Generation 4 | . . . . . . . . 1 . . . . 1 . . . . . . . . . . . . . . . . . . . . 2 . Mass Support 9 | . 1 1 . . . . 2 3 . . . . . . . . . . . . . . . . 1 . . . . . . . 1 . . Inventory Capacity 4 | . . . . . . . 1 1 . 1 . . 1 . . . . . . . . . . . . . . . . . . . . . . Sight Range 4 | . . . . . . . . . . . . . . . 2 . . . . . . . . . . . . . . . . . . . 2 Terrain Scan Density 3 | . 3 . . . . . . . . . . . . . . . . . . . . . . . . . . . . . . . . . . Ranged Accuracy 8 | . 3 . 3 . 2 . . . . . . . . . . . . . . . . . . . . . . . . . . . . . . Hack Attack % 3 | . 2 . . . . . . 1 . . . . . . . . . . . . . . . . . . . . . . . . . . . Hack Defense % 5 | . 3 1 . . . . . 1 . . . . . . . . . . . . . . . . . . . . . . . . . . . Protomatter Created 17632 | . 19 170 271 . . 78 360 800 242 332 . 419 1859 695 . . 308 1634 538 75 96 674 1515 . 1298 341 710 89 705 1002 85 . 442 2443 432 Integrity Restored 19889 | . 39 510 677 . . 369 968 829 250 252 . 935 2217 932 127 28 489 1969 575 263 . 570 859 . 2269 487 539 38 156 921 44 287 259 1612 419 Core 15086 | . 39 510 549 . . 369 898 619 201 201 . 753 1686 705 98 28 399 1474 394 204 . 373 503 . 1591 351 421 . 120 666 34 211 232 1156 301 Parts 4803 | . . . 128 . . . 70 210 49 51 . 182 531 227 29 . 90 495 181 59 . 197 356 . 678 136 118 38 36 255 10 76 27 456 118 Protomatter Decayed 15380 | . 6 . 33 . . . 20 480 93 225 . 44 1113 773 204 . 372 890 199 103 . 522 1144 . 515 . 498 316 485 3986 69 569 451 1980 290 Game ------ Seed DiametricLayeredFacilitator Manual? 0 Play Time 09:56:48 Cumulative 132.2 hours Start 2019.12.28 @ 14:23:06 End 2019.12.30 @ 11:44:23 Sessions 9 Manual Loads 0 Difficulty Rogue Special Mode Winter2019/RPGLIKE Game No. 134 Rogue 134 Adventurer 0 Explorer 0 Win Type - Total 10 Types 9/0/0/1/0/0/0 Lore% 64 Gallery% 68 Achievement% 59 Wizard Run 0 Options --------- ASCII 0 Keyboard 0 Movement Numpad Keybinds 0 Fullscreen 2 Font 18/SmallcapsGlow Map View 76x50 Tactical HUD 1 Map Filters NONE Filters NONE Steam 1 RUN: e82d27db-822e-41bb-a2fb-38b73e4bee75